Publisher Label,Publisher URI,"Supplier ID","Supplier","Invoice No.","Amount (£)","Purpose","Transaction Number","Payment Date","Organisational Unit","Cost Centre(T)","Internal Category Number"
"Wolverhampton City Council","http://opendatacommunities.org/id/metropolitan-district-council/wolverhampton","700033","Access Tail Lift Services Limited","21378","57.44","Services - Professional Fees","190372979","15/09/2017","Fleet Services","Fleet Management","R4400"
"Wolverhampton City Council","http://opendatacommunities.org/id/metropolitan-district-council/wolverhampton","700033","Access Tail Lift Services Limited","21378","57.44","Services - Professional Fees","190372979","15/09/2017","Fleet Services","Fleet Management","R4400"
"Wolverhampton City Council","http://opendatacommunities.org/id/metropolitan-district-council/wolverhampton","700033","Access Tail Lift Services Limited","21378","57.44","Services - Professional Fees","190372979","15/09/2017","Fleet Services","Fleet Management","R4400"
"Wolverhampton City Council","http://opendatacommunities.org/id/metropolitan-district-council/wolverhampton","700033","Access Tail Lift Services Limited","21378","57.44","Services - Professional Fees","190372979","15/09/2017","Fleet Services","Fleet Management","R4400"
"Wolverhampton City Council","http://opendatacommunities.org/id/metropolitan-district-council/wolverhampton","700033","Access Tail Lift Services Limited","21378","57.44","Services - Professional Fees","190372979","15/09/2017","Fleet Services","Fleet Management","R4400"
"Wolverhampton City Council","http://opendatacommunities.org/id/metropolitan-district-council/wolverhampton","700033","Access Tail Lift Services Limited","21378","57.44","Services - Professional Fees","190372979","15/09/2017","Fleet Services","Fleet Management","R4400"
"Wolverhampton City Council","http://opendatacommunities.org/id/metropolitan-district-council/wolverhampton","700033","Access Tail Lift Services Limited","21378","57.44","Services - Professional Fees","190372979","15/09/2017","Fleet Services","Fleet Management","R4400"
"Wolverhampton City Council","http://opendatacommunities.org/id/metropolitan-district-council/wolverhampton","700033","Access Tail Lift Services Limited","21378","57.44","Services - Professional Fees","190372979","15/09/2017","Fleet Services","Fleet Management","R4400"
"Wolverhampton City Council","http://opendatacommunities.org/id/metropolitan-district-council/wolverhampton","700033","Access Tail Lift Services Limited","21394","57.44","Services - Professional Fees","190378762","29/09/2017","Fleet Services","Fleet Management","R4400"
"Wolverhampton City Council","http://opendatacommunities.org/id/metropolitan-district-council/wolverhampton","700033","Access Tail Lift Services Limited","21350","57.44","Services - Professional Fees","190369176","01/09/2017","Fleet Services","Fleet Management","R4400"
"Wolverhampton City Council","http://opendatacommunities.org/id/metropolitan-district-council/wolverhampton","700033","Access Tail Lift Services Limited","21350","57.44","Services - Professional Fees","190369176","01/09/2017","Fleet Services","Fleet Management","R4400"
"Wolverhampton City Council","http://opendatacommunities.org/id/metropolitan-district-council/wolverhampton","700033","Access Tail Lift Services Limited","21350","57.44","Services - Professional Fees","190369176","01/09/2017","Fleet Services","Fleet Management","R4400"
"Wolverhampton City Council","http://opendatacommunities.org/id/metropolitan-district-council/wolverhampton","700033","Access Tail Lift Services Limited","21350","57.44","Services - Professional Fees","190369176","01/09/2017","Fleet Services","Fleet Management","R4400"
"Wolverhampton City Council","http://opendatacommunities.org/id/metropolitan-district-council/wolverhampton","700033","Access Tail Lift Services Limited","21350","57.44","Services - Professional Fees","190369176","01/09/2017","Fleet Services","Fleet Management","R4400"
"Wolverhampton City Council","http://opendatacommunities.org/id/metropolitan-district-council/wolverhampton","700033","Access Tail Lift Services Limited","21350","57.44","Services - Professional Fees","190369176","01/09/2017","Fleet Services","Fleet Management","R4400"
"Wolverhampton City Council","http://opendatacommunities.org/id/metropolitan-district-council/wolverhampton","700033","Access Tail Lift Services Limited","21387","57.44","Services - Professional Fees","190372980","15/09/2017","Fleet Services","Fleet Management","R4400"
"Wolverhampton City Council","http://opendatacommunities.org/id/metropolitan-district-council/wolverhampton","700033","Access Tail Lift Services Limited","21387","57.44","Services - Professional Fees","190372980","15/09/2017","Fleet Services","Fleet Management","R4400"
"Wolverhampton City Council","http://opendatacommunities.org/id/metropolitan-district-council/wolverhampton","700033","Access Tail Lift Services Limited","21387","57.44","Services - Professional Fees","190372980","15/09/2017","Fleet Services","Fleet Management","R4400"
"Wolverhampton City Council","http://opendatacommunities.org/id/metropolitan-district-council/wolverhampton","700033","Access Tail Lift Services Limited","21387","57.44","Services - Professional Fees","190372980","15/09/2017","Fleet Services","Fleet Management","R4400"
"Wolverhampton City Council","http://opendatacommunities.org/id/metropolitan-district-council/wolverhampton","700033","Access Tail Lift Services Limited","21353","57.44","Services - Professional Fees","190369177","01/09/2017","Fleet Services","Fleet Management","R4400"
"Wolverhampton City Council","http://opendatacommunities.org/id/metropolitan-district-council/wolverhampton","700033","Access Tail Lift Services Limited","21353","57.44","Services - Professional Fees","190369177","01/09/2017","Fleet Services","Fleet Management","R4400"
"Wolverhampton City Council","http://opendatacommunities.org/id/metropolitan-district-council/wolverhampton","700033","Access Tail Lift Services Limited","21353","57.44","Services - Professional Fees","190369177","01/09/2017","Fleet Services","Fleet Management","R4400"
"Wolverhampton City Council","http://opendatacommunities.org/id/metropolitan-district-council/wolverhampton","700033","Access Tail Lift Services Limited","21353","57.44","Services - Professional Fees","190369177","01/09/2017","Fleet Services","Fleet Management","R4400"
"Wolverhampton City Council","http://opendatacommunities.org/id/metropolitan-district-council/wolverhampton","700033","Access Tail Lift Services Limited","21353","57.44","Services - Professional Fees","190369177","01/09/2017","Fleet Services","Fleet Management","R4400"
"Wolverhampton City Council","http://opendatacommunities.org/id/metropolitan-district-council/wolverhampton","700033","Access Tail Lift Services Limited","21353","57.44","Services - Professional Fees","190369177","01/09/2017","Fleet Services","Fleet Management","R4400"
"Wolverhampton City Council","http://opendatacommunities.org/id/metropolitan-district-council/wolverhampton","700033","Access Tail Lift Services Limited","21353","57.44","Services - Professional Fees","190369177","01/09/2017","Fleet Services","Fleet Management","R4400"
"Wolverhampton City Council","http://opendatacommunities.org/id/metropolitan-district-council/wolverhampton","700033","Access Tail Lift Services Limited","21353","57.44","Services - Professional Fees","190369177","01/09/2017","Fleet Services","Fleet Management","R4400"
"Wolverhampton City Council","http://opendatacommunities.org/id/metropolitan-district-council/wolverhampton","700033","Access Tail Lift Services Limited","21353","57.44","Services - Professional Fees","190369177","01/09/2017","Fleet Services","Fleet Management","R4400"
"Wolverhampton City Council","http://opendatacommunities.org/id/metropolitan-district-council/wolverhampton","700033","Access Tail Lift Services Limited","21353","57.44","Services - Professional Fees","190369177","01/09/2017","Fleet Services","Fleet Management","R4400"
"Wolverhampton City Council","http://opendatacommunities.org/id/metropolitan-district-council/wolverhampton","700033","Access Tail Lift Services Limited","21353","57.44","Services - Professional Fees","190369177","01/09/2017","Fleet Services","Fleet Management","R4400"
"Wolverhampton City Council","http://opendatacommunities.org/id/metropolitan-district-council/wolverhampton","700033","Access Tail Lift Services Limited","21353","57.44","Services - Professional Fees","190369177","01/09/2017","Fleet Services","Fleet Management","R4400"
"Wolverhampton City Council","http://opendatacommunities.org/id/metropolitan-district-council/wolverhampton","700110","Accordial Group (Holdings) Limited","0000001386 bacs reject","275.00","R&M - Departmental planned (external)","130187130","08/09/2017","Schools","West Park Primary School","R2001"
"Wolverhampton City Council","http://opendatacommunities.org/id/metropolitan-district-council/wolverhampton","700220","THE Acme Facilities Group Ltd","IN305835","1,137.00","Furniture","130189164","27/09/2017","Corporate Asset Management","Future Space Decant Area","R4004"
"Wolverhampton City Council","http://opendatacommunities.org/id/metropolitan-district-council/wolverhampton","700264","Acorn Environmental Mgt Group Limited","10501","1,003.83","Grounds Maintenance - Contract","130186318","06/09/2017","Environmental Maintenance","Arbor Scheme","R2075"
"Wolverhampton City Council","http://opendatacommunities.org/id/metropolitan-district-council/wolverhampton","700264","Acorn Environmental Mgt Group Limited","10531","2,451.01","Grounds Maintenance - Contract","130187421","18/09/2017","Environmental Maintenance","Arbor Scheme","R2075"
"Wolverhampton City Council","http://opendatacommunities.org/id/metropolitan-district-council/wolverhampton","700341","Acs Business Supplies Limited","SINV00397534","21.39","Stationery","130185507","08/09/2017","Strategic Organisation Development","Global Budgets","R4308"
"Wolverhampton City Council","http://opendatacommunities.org/id/metropolitan-district-council/wolverhampton","700341","Acs Business Supplies Limited","SINV00397534","34.67","Stationery","130185507","08/09/2017","Strategic Organisation Development","Global Budgets","R4308"
"Wolverhampton City Council","http://opendatacommunities.org/id/metropolitan-district-council/wolverhampton","700341","Acs Business Supplies Limited","SINV00397536","6.68","Stationery","130185509","08/09/2017","Child Protection","CIN/CP Social Work Unit - Area 4","R4308"
"Wolverhampton City Council","http://opendatacommunities.org/id/metropolitan-district-council/wolverhampton","700341","Acs Business Supplies Limited","SINV00397536","6.33","Stationery","130185509","08/09/2017","Child Protection","CIN/CP Social Work Unit - Area 4","R4308"
"Wolverhampton City Council","http://opendatacommunities.org/id/metropolitan-district-council/wolverhampton","700341","Acs Business Supplies Limited","SCRN00045001","-48.24","Stationery","130187125","15/09/2017","Management and Administration","Public Health Support Costs","R4308"
"Wolverhampton City Council","http://opendatacommunities.org/id/metropolitan-district-council/wolverhampton","700341","Acs Business Supplies Limited","SINV00385837","45.43","Stationery","130174595","06/09/2017","Child Protection","Childrens with Disabilities Team","R4308"
"Wolverhampton City Council","http://opendatacommunities.org/id/metropolitan-district-council/wolverhampton","700341","Acs Business Supplies Limited","SINV00400524","2.54","Stationery","130188277","27/09/2017","Inclusion Support","Inclusion Support","R4308"
"Wolverhampton City Council","http://opendatacommunities.org/id/metropolitan-district-council/wolverhampton","700341","Acs Business Supplies Limited","SINV00400524","10.01","Stationery","130188277","27/09/2017","Inclusion Support","Inclusion Support","R4308"
"Wolverhampton City Council","http://opendatacommunities.org/id/metropolitan-district-council/wolverhampton","700341","Acs Business Supplies Limited","SINV00400524","2.84","Stationery","130188277","27/09/2017","Inclusion Support","Inclusion Support","R4308"
"Wolverhampton City Council","http://opendatacommunities.org/id/metropolitan-district-council/wolverhampton","700341","Acs Business Supplies Limited","SINV00400524","15.60","Stationery","130188277","27/09/2017","Inclusion Support","Inclusion Support","R4308"
"Wolverhampton City Council","http://opendatacommunities.org/id/metropolitan-district-council/wolverhampton","700341","Acs Business Supplies Limited","SINV00400524","2.58","Stationery","130188277","27/09/2017","Inclusion Support","Inclusion Support","R4308"
"Wolverhampton City Council","http://opendatacommunities.org/id/metropolitan-district-council/wolverhampton","700341","Acs Business Supplies Limited","SINV00400524","23.98","Stationery","130188277","27/09/2017","Inclusion Support","Inclusion Support","R4308"
"Wolverhampton City Council","http://opendatacommunities.org/id/metropolitan-district-council/wolverhampton","700341","Acs Business Supplies Limited","SINV00400524","15.20","Stationery","130188277","27/09/2017","Inclusion Support","Inclusion Support","R4308"
"Wolverhampton City Council","http://opendatacommunities.org/id/metropolitan-district-council/wolverhampton","700341","Acs Business Supplies Limited","SINV00400524","32.99","Stationery","130188277","27/09/2017","Inclusion Support","Inclusion Support","R4308"
"Wolverhampton City Council","http://opendatacommunities.org/id/metropolitan-district-council/wolverhampton","700341","Acs Business Supplies Limited","SINV00400524","5.98","Stationery","130188277","27/09/2017","Inclusion Support","Inclusion Support","R4308"
"Wolverhampton City Council","http://opendatacommunities.org/id/metropolitan-district-council/wolverhampton","700341","Acs Business Supplies Limited","SINV00400524","1.50","Stationery","130188277","27/09/2017","Inclusion Support","Inclusion Support","R4308"
"Wolverhampton City Council","http://opendatacommunities.org/id/metropolitan-district-council/wolverhampton","700341","Acs Business Supplies Limited","SINV00400524","6.78","Stationery","130188277","27/09/2017","Inclusion Support","Inclusion Support","R4308"
"Wolverhampton City Council","http://opendatacommunities.org/id/metropolitan-district-council/wolverhampton","700341","Acs Business Supplies Limited","SINV00400524","14.66","Stationery","130188277","27/09/2017","Inclusion Support","Inclusion Support","R4308"
"Wolverhampton City Council","http://opendatacommunities.org/id/metropolitan-district-council/wolverhampton","700341","Acs Business Supplies Limited","SINV00389041","148.00","Stationery","130177801","22/09/2017","Fleet Services","Fleet Management","R4308"
"Wolverhampton City Council","http://opendatacommunities.org/id/metropolitan-district-council/wolverhampton","700341","Acs Business Supplies Limited","SINV00389041","14.95","Stationery","130177801","22/09/2017","Fleet Services","Fleet Management","R4308"
"Wolverhampton City Council","http://opendatacommunities.org/id/metropolitan-district-council/wolverhampton","700341","Acs Business Supplies Limited","SINV00399412","345.76","Stationery","130187197","27/09/2017","Democratic Services","Register Office","R4308"
"Wolverhampton City Council","http://opendatacommunities.org/id/metropolitan-district-council/wolverhampton","700341","Acs Business Supplies Limited","SINV00399410","226.89","Furniture","130187195","27/09/2017","Adult Education","Old Hall Street Main","R4004"
"Wolverhampton City Council","http://opendatacommunities.org/id/metropolitan-district-council/wolverhampton","700341","Acs Business Supplies Limited","SINV00399410","183.76","Furniture","130187195","27/09/2017","Adult Education","Old Hall Street Main","R4004"
"Wolverhampton City Council","http://opendatacommunities.org/id/metropolitan-district-council/wolverhampton","700341","Acs Business Supplies Limited","SINV00400906","312.74","Stationery","130188280","27/09/2017","Independent Living Service","Independent Living Service","R4308"
"Wolverhampton City Council","http://opendatacommunities.org/id/metropolitan-district-council/wolverhampton","700341","Acs Business Supplies Limited","SINV00400442","93.59","Stationery","130188276","27/09/2017","Independent Living Service","Independent Living Service","R4308"
"Wolverhampton City Council","http://opendatacommunities.org/id/metropolitan-district-council/wolverhampton","700341","Acs Business Supplies Limited","SINV00394877","81.19","Stationery","130182918","13/09/2017","Skills","IMPACT","R4308"
"Wolverhampton City Council","http://opendatacommunities.org/id/metropolitan-district-council/wolverhampton","700341","Acs Business Supplies Limited","SINV00394877","14.95","Stationery","130182918","13/09/2017","Skills","IMPACT","R4308"
"Wolverhampton City Council","http://opendatacommunities.org/id/metropolitan-district-council/wolverhampton","700341","Acs Business Supplies Limited","SINV00398205","33.22","Stationery","130185982","13/09/2017","Democratic Services","Register Office","R4308"
"Wolverhampton City Council","http://opendatacommunities.org/id/metropolitan-district-council/wolverhampton","700341","Acs Business Supplies Limited","SINV00398205","-33.22","Stationery","130185982","13/09/2017","Democratic Services","Register Office","R4308"
"Wolverhampton City Council","http://opendatacommunities.org/id/metropolitan-district-council/wolverhampton","700341","Acs Business Supplies Limited","SINV00398205","33.86","Stationery","130185982","13/09/2017","Democratic Services","Register Office","R4308"
"Wolverhampton City Council","http://opendatacommunities.org/id/metropolitan-district-council/wolverhampton","700341","Acs Business Supplies Limited","SINV00376429","201.48","Stationery","130166709","20/09/2017","Adult Education","Service Wide","R4308"
"Wolverhampton City Council","http://opendatacommunities.org/id/metropolitan-district-council/wolverhampton","700341","Acs Business Supplies Limited","SINV00398971","29.98","Stationery","130186541","20/09/2017","Looked After Children","Adoption and Residence Team & Allowances","R4308"
"Wolverhampton City Council","http://opendatacommunities.org/id/metropolitan-district-council/wolverhampton","700341","Acs Business Supplies Limited","SINV00398971","13.54","Stationery","130186541","20/09/2017","Looked After Children","Adoption and Residence Team & Allowances","R4308"
"Wolverhampton City Council","http://opendatacommunities.org/id/metropolitan-district-council/wolverhampton","700341","Acs Business Supplies Limited","SINV00398971","8.94","Stationery","130186541","20/09/2017","Looked After Children","Adoption and Residence Team & Allowances","R4308"
"Wolverhampton City Council","http://opendatacommunities.org/id/metropolitan-district-council/wolverhampton","700341","Acs Business Supplies Limited","SINV00398971","4.90","Stationery","130186541","20/09/2017","Looked After Children","Adoption and Residence Team & Allowances","R4308"
"Wolverhampton City Council","http://opendatacommunities.org/id/metropolitan-district-council/wolverhampton","700341","Acs Business Supplies Limited","SINV00398971","7.70","Stationery","130186541","20/09/2017","Looked After Children","Adoption and Residence Team & Allowances","R4308"
"Wolverhampton City Council","http://opendatacommunities.org/id/metropolitan-district-council/wolverhampton","700341","Acs Business Supplies Limited","SINV00398971","68.80","Stationery","130186541","20/09/2017","Looked After Children","Adoption and Residence Team & Allowances","R4308"
"Wolverhampton City Council","http://opendatacommunities.org/id/metropolitan-district-council/wolverhampton","700341","Acs Business Supplies Limited","SINV00398971","18.10","Stationery","130186541","20/09/2017","Looked After Children","Adoption and Residence Team & Allowances","R4308"
"Wolverhampton City Council","http://opendatacommunities.org/id/metropolitan-district-council/wolverhampton","700341","Acs Business Supplies Limited","SINV00398971","5.73","Stationery","130186541","20/09/2017","Looked After Children","Adoption and Residence Team & Allowances","R4308"
"Wolverhampton City Council","http://opendatacommunities.org/id/metropolitan-district-council/wolverhampton","700341","Acs Business Supplies Limited","SINV00397537","41.94","Stationery","130185510","08/09/2017","Healthier Places Service","Healthy Lifestyles Team","R4308"
"Wolverhampton City Council","http://opendatacommunities.org/id/metropolitan-district-council/wolverhampton","700341","Acs Business Supplies Limited","SINV00397535","10.44","Stationery","130185508","08/09/2017","Democratic Services","Register Office","R4308"
"Wolverhampton City Council","http://opendatacommunities.org/id/metropolitan-district-council/wolverhampton","700341","Acs Business Supplies Limited","SINV00397535","46.14","Stationery","130185508","08/09/2017","Democratic Services","Register Office","R4308"
"Wolverhampton City Council","http://opendatacommunities.org/id/metropolitan-district-council/wolverhampton","700341","Acs Business Supplies Limited","SCRN00049001","-14.95","Stationery","130185140","08/09/2017","Parking Services","Parking Enforcement","R4308"
"Wolverhampton City Council","http://opendatacommunities.org/id/metropolitan-district-council/wolverhampton","700341","Acs Business Supplies Limited","SINV00395735","839.88","Furniture","130186858","06/09/2017","Adult Education","Beckminster","R4004"
"Wolverhampton City Council","http://opendatacommunities.org/id/metropolitan-district-council/wolverhampton","700341","Acs Business Supplies Limited","SINV00395735","299.88","Furniture","130186858","06/09/2017","Adult Education","Beckminster","R4004"
"Wolverhampton City Council","http://opendatacommunities.org/id/metropolitan-district-council/wolverhampton","700341","Acs Business Supplies Limited","SINV00396638","59.01","Stationery","130184833","06/09/2017","Adult Education","Service Wide","R4308"
"Wolverhampton City Council","http://opendatacommunities.org/id/metropolitan-district-council/wolverhampton","700341","Acs Business Supplies Limited","SINV00396638","28.20","Stationery","130184833","06/09/2017","Adult Education","Service Wide","R4308"
"Wolverhampton City Council","http://opendatacommunities.org/id/metropolitan-district-council/wolverhampton","700341","Acs Business Supplies Limited","SINV00396638","8.97","Stationery","130184833","06/09/2017","Adult Education","Service Wide","R4308"
"Wolverhampton City Council","http://opendatacommunities.org/id/metropolitan-district-council/wolverhampton","700341","Acs Business Supplies Limited","SINV00396638","41.94","Stationery","130184833","06/09/2017","Adult Education","Service Wide","R4308"
"Wolverhampton City Council","http://opendatacommunities.org/id/metropolitan-district-council/wolverhampton","700341","Acs Business Supplies Limited","SINV00396638","43.96","Stationery","130184833","06/09/2017","Adult Education","Service Wide","R4308"
"Wolverhampton City Council","http://opendatacommunities.org/id/metropolitan-district-council/wolverhampton","700341","Acs Business Supplies Limited","SINV00396638","4.99","Stationery","130184833","06/09/2017","Adult Education","Service Wide","R4308"
"Wolverhampton City Council","http://opendatacommunities.org/id/metropolitan-district-council/wolverhampton","700341","Acs Business Supplies Limited","SINV00396638","0.80","Stationery","130184833","06/09/2017","Adult Education","Service Wide","R4308"
"Wolverhampton City Council","http://opendatacommunities.org/id/metropolitan-district-council/wolverhampton","700341","Acs Business Supplies Limited","SINV00399413","537.00","Stationery","130187198","27/09/2017","Corporate Asset Management","Future Space Decant Area","R4308"
"Wolverhampton City Council","http://opendatacommunities.org/id/metropolitan-district-council/wolverhampton","700341","Acs Business Supplies Limited","SINV00400904","26.97","Stationery","130188278","27/09/2017","Bereavement Services","Cemeteries","R4308"
"Wolverhampton City Council","http://opendatacommunities.org/id/metropolitan-district-council/wolverhampton","700341","Acs Business Supplies Limited","SINV00400904","77.37","Stationery","130188278","27/09/2017","Bereavement Services","Cemeteries","R4308"
"Wolverhampton City Council","http://opendatacommunities.org/id/metropolitan-district-council/wolverhampton","700341","Acs Business Supplies Limited","SINV00400904","14.99","Stationery","130188278","27/09/2017","Bereavement Services","Cemeteries","R4308"
"Wolverhampton City Council","http://opendatacommunities.org/id/metropolitan-district-council/wolverhampton","700341","Acs Business Supplies Limited","SINV00400904","18.99","Stationery","130188278","27/09/2017","Bereavement Services","Cemeteries","R4308"
"Wolverhampton City Council","http://opendatacommunities.org/id/metropolitan-district-council/wolverhampton","700341","Acs Business Supplies Limited","SINV00390203","97.05","Stationery","130179101","27/09/2017","Safeguarding","Head of Service Quality and Safeguarding","R4308"
"Wolverhampton City Council","http://opendatacommunities.org/id/metropolitan-district-council/wolverhampton","700341","Acs Business Supplies Limited","SINV00399411","6.00","Stationery","130187196","27/09/2017","Facilities Management","Civic Centre","R4308"
"Wolverhampton City Council","http://opendatacommunities.org/id/metropolitan-district-council/wolverhampton","700341","Acs Business Supplies Limited","SINV00399411","26.75","Stationery","130187196","27/09/2017","Facilities Management","Civic Centre","R4308"
"Wolverhampton City Council","http://opendatacommunities.org/id/metropolitan-district-council/wolverhampton","700341","Acs Business Supplies Limited","SINV00399411","17.87","Stationery","130187196","27/09/2017","Facilities Management","Civic Centre","R4308"
"Wolverhampton City Council","http://opendatacommunities.org/id/metropolitan-district-council/wolverhampton","700341","Acs Business Supplies Limited","SINV00400293","6.88","Stationery","130188275","27/09/2017","Specialist Support","Intensive Family Support & Family Group Conferencing Team","R4308"
"Wolverhampton City Council","http://opendatacommunities.org/id/metropolitan-district-council/wolverhampton","700341","Acs Business Supplies Limited","SINV00400293","11.32","Stationery","130188275","27/09/2017","Specialist Support","Intensive Family Support & Family Group Conferencing Team","R4308"
"Wolverhampton City Council","http://opendatacommunities.org/id/metropolitan-district-council/wolverhampton","700341","Acs Business Supplies Limited","SINV00400293","3.07","Stationery","130188275","27/09/2017","Specialist Support","Intensive Family Support & Family Group Conferencing Team","R4308"
"Wolverhampton City Council","http://opendatacommunities.org/id/metropolitan-district-council/wolverhampton","700341","Acs Business Supplies Limited","SINV00400293","6.99","Stationery","130188275","27/09/2017","Specialist Support","Intensive Family Support & Family Group Conferencing Team","R4308"
"Wolverhampton City Council","http://opendatacommunities.org/id/metropolitan-district-council/wolverhampton","700341","Acs Business Supplies Limited","SINV00400293","1.81","Stationery","130188275","27/09/2017","Specialist Support","Intensive Family Support & Family Group Conferencing Team","R4308"
"Wolverhampton City Council","http://opendatacommunities.org/id/metropolitan-district-council/wolverhampton","700341","Acs Business Supplies Limited","SINV00398629","190.96","Stationery","130186143","13/09/2017","Democratic Services","Register Office","R4308"
"Wolverhampton City Council","http://opendatacommunities.org/id/metropolitan-district-council/wolverhampton","700341","Acs Business Supplies Limited","SINV00398629","-190.96","Stationery","130186143","13/09/2017","Democratic Services","Register Office","R4308"
"Wolverhampton City Council","http://opendatacommunities.org/id/metropolitan-district-council/wolverhampton","700341","Acs Business Supplies Limited","SINV00398629","192.84","Stationery","130186143","13/09/2017","Democratic Services","Register Office","R4308"
"Wolverhampton City Council","http://opendatacommunities.org/id/metropolitan-district-council/wolverhampton","700341","Acs Business Supplies Limited","SCRN00048977","-76.48","Stationery","130185505","13/09/2017","Headstart","Headstart Phase 3","R4308"
"Wolverhampton City Council","http://opendatacommunities.org/id/metropolitan-district-council/wolverhampton","700341","Acs Business Supplies Limited","SCRN00048977","-55.68","Stationery","130185505","13/09/2017","Headstart","Headstart Phase 3","R4308"
"Wolverhampton City Council","http://opendatacommunities.org/id/metropolitan-district-council/wolverhampton","700341","Acs Business Supplies Limited","SCRN00048977","55.68","Stationery","130185505","13/09/2017","Headstart","Headstart Phase 3","R4308"
"Wolverhampton City Council","http://opendatacommunities.org/id/metropolitan-district-council/wolverhampton","700341","Acs Business Supplies Limited","SINV00398628","3.82","Stationery","130186142","13/09/2017","Independent Living Service","Independent Living Service","R4308"
"Wolverhampton City Council","http://opendatacommunities.org/id/metropolitan-district-council/wolverhampton","700341","Acs Business Supplies Limited","SINV00398628","12.33","Stationery","130186142","13/09/2017","Independent Living Service","Independent Living Service","R4308"
"Wolverhampton City Council","http://opendatacommunities.org/id/metropolitan-district-council/wolverhampton","700341","Acs Business Supplies Limited","SINV00398628","2.54","Stationery","130186142","13/09/2017","Independent Living Service","Independent Living Service","R4308"
"Wolverhampton City Council","http://opendatacommunities.org/id/metropolitan-district-council/wolverhampton","700341","Acs Business Supplies Limited","SINV00398628","32.44","Stationery","130186142","13/09/2017","Independent Living Service","Independent Living Service","R4308"
"Wolverhampton City Council","http://opendatacommunities.org/id/metropolitan-district-council/wolverhampton","700341","Acs Business Supplies Limited","SINV00398628","14.85","Stationery","130186142","13/09/2017","Independent Living Service","Independent Living Service","R4308"
"Wolverhampton City Council","http://opendatacommunities.org/id/metropolitan-district-council/wolverhampton","700341","Acs Business Supplies Limited","SINV00398628","9.98","Stationery","130186142","13/09/2017","Independent Living Service","Independent Living Service","R4308"
"Wolverhampton City Council","http://opendatacommunities.org/id/metropolitan-district-council/wolverhampton","700341","Acs Business Supplies Limited","SINV00398628","23.96","Stationery","130186142","13/09/2017","Independent Living Service","Independent Living Service","R4308"
"Wolverhampton City Council","http://opendatacommunities.org/id/metropolitan-district-council/wolverhampton","700341","Acs Business Supplies Limited","SINV00398628","11.97","Stationery","130186142","13/09/2017","Independent Living Service","Independent Living Service","R4308"
"Wolverhampton City Council","http://opendatacommunities.org/id/metropolitan-district-council/wolverhampton","700341","Acs Business Supplies Limited","SINV00398628","18.99","Stationery","130186142","13/09/2017","Independent Living Service","Independent Living Service","R4308"
"Wolverhampton City Council","http://opendatacommunities.org/id/metropolitan-district-council/wolverhampton","700341","Acs Business Supplies Limited","SINV00398628","44.86","Stationery","130186142","13/09/2017","Independent Living Service","Independent Living Service","R4308"
"Wolverhampton City Council","http://opendatacommunities.org/id/metropolitan-district-council/wolverhampton","700341","Acs Business Supplies Limited","SCRN00049215","-187.50","Stationery","130187696","20/09/2017","Adult Education","Service Wide","R4308"
"Wolverhampton City Council","http://opendatacommunities.org/id/metropolitan-district-council/wolverhampton","700341","Acs Business Supplies Limited","SINV00398972","19.92","Stationery","130186542","20/09/2017","Cleaning","Cleaning of Buildings - General","R4308"
"Wolverhampton City Council","http://opendatacommunities.org/id/metropolitan-district-council/wolverhampton","700341","Acs Business Supplies Limited","SINV00398972","82.14","Stationery","130186542","20/09/2017","Cleaning","Cleaning of Buildings - General","R4308"
"Wolverhampton City Council","http://opendatacommunities.org/id/metropolitan-district-council/wolverhampton","700341","Acs Business Supplies Limited","SINV00398972","1.00","Stationery","130186542","20/09/2017","Cleaning","Cleaning of Buildings - General","R4308"
"Wolverhampton City Council","http://opendatacommunities.org/id/metropolitan-district-council/wolverhampton","700341","Acs Business Supplies Limited","SINV00398972","42.67","Stationery","130186542","20/09/2017","Cleaning","Cleaning of Buildings - General","R4308"
"Wolverhampton City Council","http://opendatacommunities.org/id/metropolitan-district-council/wolverhampton","700341","Acs Business Supplies Limited","SINV00398972","5.48","Stationery","130186542","20/09/2017","Cleaning","Cleaning of Buildings - General","R4308"
"Wolverhampton City Council","http://opendatacommunities.org/id/metropolitan-district-council/wolverhampton","700341","Acs Business Supplies Limited","SINV00398974","12.12","Stationery","130186950","20/09/2017","Headstart","Headstart Phase 3","R4308"
"Wolverhampton City Council","http://opendatacommunities.org/id/metropolitan-district-council/wolverhampton","700341","Acs Business Supplies Limited","SINV00398974","5.43","Stationery","130186950","20/09/2017","Headstart","Headstart Phase 3","R4308"
"Wolverhampton City Council","http://opendatacommunities.org/id/metropolitan-district-council/wolverhampton","700341","Acs Business Supplies Limited","SINV00398974","2.93","Stationery","130186950","20/09/2017","Headstart","Headstart Phase 3","R4308"
"Wolverhampton City Council","http://opendatacommunities.org/id/metropolitan-district-council/wolverhampton","700341","Acs Business Supplies Limited","SINV00398974","16.32","Stationery","130186950","20/09/2017","Headstart","Headstart Phase 3","R4308"
"Wolverhampton City Council","http://opendatacommunities.org/id/metropolitan-district-council/wolverhampton","700341","Acs Business Supplies Limited","SINV00398974","15.33","Stationery","130186950","20/09/2017","Headstart","Headstart Phase 3","R4308"
"Wolverhampton City Council","http://opendatacommunities.org/id/metropolitan-district-council/wolverhampton","700341","Acs Business Supplies Limited","SINV00398974","2.97","Stationery","130186950","20/09/2017","Headstart","Headstart Phase 3","R4308"
"Wolverhampton City Council","http://opendatacommunities.org/id/metropolitan-district-council/wolverhampton","700341","Acs Business Supplies Limited","SINV00398974","12.90","Stationery","130186950","20/09/2017","Headstart","Headstart Phase 3","R4308"
"Wolverhampton City Council","http://opendatacommunities.org/id/metropolitan-district-council/wolverhampton","700341","Acs Business Supplies Limited","SINV00398974","25.44","Stationery","130186950","20/09/2017","Headstart","Headstart Phase 3","R4308"
"Wolverhampton City Council","http://opendatacommunities.org/id/metropolitan-district-council/wolverhampton","700341","Acs Business Supplies Limited","SINV00398974","21.15","Stationery","130186950","20/09/2017","Headstart","Headstart Phase 3","R4308"
"Wolverhampton City Council","http://opendatacommunities.org/id/metropolitan-district-council/wolverhampton","700341","Acs Business Supplies Limited","SINV00369040","48.24","Stationery","130159822","08/09/2017","Management and Administration","Public Health Support Costs","R4308"
"Wolverhampton City Council","http://opendatacommunities.org/id/metropolitan-district-council/wolverhampton","700341","Acs Business Supplies Limited","SINV00397210","1,497.00","Stationery","130185141","08/09/2017","Corporate Asset Management","Future Space Decant Area","R4308"
"Wolverhampton City Council","http://opendatacommunities.org/id/metropolitan-district-council/wolverhampton","700341","Acs Business Supplies Limited","SINV00396637","26.93","Stationery","130184832","06/09/2017","Adults Assessment & Care Management North","Learning Disabilities Assessment and Care Management","R4308"
"Wolverhampton City Council","http://opendatacommunities.org/id/metropolitan-district-council/wolverhampton","700341","Acs Business Supplies Limited","SCRN00049248","-7.66","Stationery","130187698","22/09/2017","Safeguarding","Head of Service Quality and Safeguarding","R4308"
"Wolverhampton City Council","http://opendatacommunities.org/id/metropolitan-district-council/wolverhampton","700341","Acs Business Supplies Limited","SINV00399921","6.88","Stationery","130187426","27/09/2017","Emergency Duty Team","Emergency Duty Team","R4308"
"Wolverhampton City Council","http://opendatacommunities.org/id/metropolitan-district-council/wolverhampton","700341","Acs Business Supplies Limited","SINV00399921","1.92","Stationery","130187426","27/09/2017","Emergency Duty Team","Emergency Duty Team","R4308"
"Wolverhampton City Council","http://opendatacommunities.org/id/metropolitan-district-council/wolverhampton","700341","Acs Business Supplies Limited","SINV00401026","7.80","Stationery","130188281","27/09/2017","Environmental Maintenance","Ground Maintenance West","R4308"
"Wolverhampton City Council","http://opendatacommunities.org/id/metropolitan-district-council/wolverhampton","700341","Acs Business Supplies Limited","SINV00401026","14.85","Stationery","130188281","27/09/2017","Environmental Maintenance","Ground Maintenance West","R4308"
"Wolverhampton City Council","http://opendatacommunities.org/id/metropolitan-district-council/wolverhampton","700341","Acs Business Supplies Limited","SINV00401026","4.99","Stationery","130188281","27/09/2017","Environmental Maintenance","Ground Maintenance West","R4308"
"Wolverhampton City Council","http://opendatacommunities.org/id/metropolitan-district-council/wolverhampton","700341","Acs Business Supplies Limited","SINV00401026","23.99","Stationery","130188281","27/09/2017","Environmental Maintenance","Ground Maintenance West","R4308"
"Wolverhampton City Council","http://opendatacommunities.org/id/metropolitan-district-council/wolverhampton","700341","Acs Business Supplies Limited","SINV00399919","106.17","Stationery","130187424","27/09/2017","Adult Education","Service Wide","R4308"
"Wolverhampton City Council","http://opendatacommunities.org/id/metropolitan-district-council/wolverhampton","700341","Acs Business Supplies Limited","SINV00399920","108.92","Stationery","130187425","27/09/2017","Child Protection","CIN/CP Social Work Unit - Area 1","R4308"
"Wolverhampton City Council","http://opendatacommunities.org/id/metropolitan-district-council/wolverhampton","700341","Acs Business Supplies Limited","SINV00399414","13.01","Stationery","130187199","27/09/2017","Child Protection","CIN/CP Social Work Unit - Area 4","R4308"
"Wolverhampton City Council","http://opendatacommunities.org/id/metropolitan-district-council/wolverhampton","700341","Acs Business Supplies Limited","SINV00394616","119.96","Stationery","130182662","13/09/2017","Adult Education","Alan Garner Centre Building","R4308"
"Wolverhampton City Council","http://opendatacommunities.org/id/metropolitan-district-council/wolverhampton","700341","Acs Business Supplies Limited","SINV00394616","14.95","Stationery","130182662","13/09/2017","Adult Education","Alan Garner Centre Building","R4308"
"Wolverhampton City Council","http://opendatacommunities.org/id/metropolitan-district-council/wolverhampton","700341","Acs Business Supplies Limited","SINV00398630","13.38","Stationery","130186144","13/09/2017","Skills","Connexions Contract","R4308"
"Wolverhampton City Council","http://opendatacommunities.org/id/metropolitan-district-council/wolverhampton","700341","Acs Business Supplies Limited","SINV00398630","3.29","Stationery","130186144","13/09/2017","Skills","Connexions Contract","R4308"
"Wolverhampton City Council","http://opendatacommunities.org/id/metropolitan-district-council/wolverhampton","700341","Acs Business Supplies Limited","SINV00398630","0.96","Stationery","130186144","13/09/2017","Skills","Connexions Contract","R4308"
"Wolverhampton City Council","http://opendatacommunities.org/id/metropolitan-district-council/wolverhampton","700341","Acs Business Supplies Limited","SINV00398630","0.99","Stationery","130186144","13/09/2017","Skills","Connexions Contract","R4308"
"Wolverhampton City Council","http://opendatacommunities.org/id/metropolitan-district-council/wolverhampton","700341","Acs Business Supplies Limited","SINV00398630","7.13","Stationery","130186144","13/09/2017","Skills","Connexions Contract","R4308"
"Wolverhampton City Council","http://opendatacommunities.org/id/metropolitan-district-council/wolverhampton","700341","Acs Business Supplies Limited","SINV00384409","55.99","Stationery","130173549","13/09/2017","Adult Education","Admin & Support","R4308"
"Wolverhampton City Council","http://opendatacommunities.org/id/metropolitan-district-council/wolverhampton","700341","Acs Business Supplies Limited","SINV00384409","14.95","Stationery","130173549","13/09/2017","Adult Education","Admin & Support","R4308"
"Wolverhampton City Council","http://opendatacommunities.org/id/metropolitan-district-council/wolverhampton","700341","Acs Business Supplies Limited","SINV00394425","20.34","Stationery","130182659","01/09/2017","Adult Education","Service Wide","R4308"
"Wolverhampton City Council","http://opendatacommunities.org/id/metropolitan-district-council/wolverhampton","700341","Acs Business Supplies Limited","SINV00394425","7.44","Stationery","130182659","01/09/2017","Adult Education","Service Wide","R4308"
"Wolverhampton City Council","http://opendatacommunities.org/id/metropolitan-district-council/wolverhampton","700341","Acs Business Supplies Limited","SINV00394425","5.99","Stationery","130182659","01/09/2017","Adult Education","Service Wide","R4308"
"Wolverhampton City Council","http://opendatacommunities.org/id/metropolitan-district-council/wolverhampton","700341","Acs Business Supplies Limited","SINV00394425","19.37","Stationery","130182659","01/09/2017","Adult Education","Service Wide","R4308"
"Wolverhampton City Council","http://opendatacommunities.org/id/metropolitan-district-council/wolverhampton","700341","Acs Business Supplies Limited","SINV00394425","66.90","Stationery","130182659","01/09/2017","Adult Education","Service Wide","R4308"
"Wolverhampton City Council","http://opendatacommunities.org/id/metropolitan-district-council/wolverhampton","700341","Acs Business Supplies Limited","SINV00398973","20.16","Stationery","130186543","20/09/2017","Catering","Education Catering - General Overheads","R4308"
"Wolverhampton City Council","http://opendatacommunities.org/id/metropolitan-district-council/wolverhampton","700341","Acs Business Supplies Limited","SINV00398973","25.68","Stationery","130186543","20/09/2017","Catering","Education Catering - General Overheads","R4308"
"Wolverhampton City Council","http://opendatacommunities.org/id/metropolitan-district-council/wolverhampton","700341","Acs Business Supplies Limited","SINV00398973","59.96","Stationery","130186543","20/09/2017","Catering","Education Catering - General Overheads","R4308"
"Wolverhampton City Council","http://opendatacommunities.org/id/metropolitan-district-council/wolverhampton","700341","Acs Business Supplies Limited","SINV00398973","12.40","Stationery","130186543","20/09/2017","Catering","Education Catering - General Overheads","R4308"
"Wolverhampton City Council","http://opendatacommunities.org/id/metropolitan-district-council/wolverhampton","700341","Acs Business Supplies Limited","SINV00398973","9.72","Stationery","130186543","20/09/2017","Catering","Education Catering - General Overheads","R4308"
"Wolverhampton City Council","http://opendatacommunities.org/id/metropolitan-district-council/wolverhampton","700341","Acs Business Supplies Limited","SINV00399212","352.02","Furniture","130187422","20/09/2017","Adult Education","Old Hall Street Main","R4004"
"Wolverhampton City Council","http://opendatacommunities.org/id/metropolitan-district-council/wolverhampton","700341","Acs Business Supplies Limited","SINV00399212","212.49","Furniture","130187422","20/09/2017","Adult Education","Old Hall Street Main","R4004"
"Wolverhampton City Council","http://opendatacommunities.org/id/metropolitan-district-council/wolverhampton","700341","Acs Business Supplies Limited","SINV00399212","212.49","Furniture","130187422","20/09/2017","Adult Education","Old Hall Street Main","R4004"
"Wolverhampton City Council","http://opendatacommunities.org/id/metropolitan-district-council/wolverhampton","700341","Acs Business Supplies Limited","SCRN00048167","-11.54","Stationery","130181475","20/09/2017","Community Safety","SWP - Infrastructure","R4308"
"Wolverhampton City Council","http://opendatacommunities.org/id/metropolitan-district-council/wolverhampton","700341","Acs Business Supplies Limited","SINV00399416","31.99","Stationery","130187201","27/09/2017","Independent Living Service","Independent Living Service","R4308"
"Wolverhampton City Council","http://opendatacommunities.org/id/metropolitan-district-council/wolverhampton","700341","Acs Business Supplies Limited","SINV00399416","18.91","Stationery","130187201","27/09/2017","Independent Living Service","Independent Living Service","R4308"
"Wolverhampton City Council","http://opendatacommunities.org/id/metropolitan-district-council/wolverhampton","700341","Acs Business Supplies Limited","SINV00399415","33.29","Stationery","130187200","27/09/2017","Strategic Director Place","Business Manager - Place","R4308"
"Wolverhampton City Council","http://opendatacommunities.org/id/metropolitan-district-council/wolverhampton","700341","Acs Business Supplies Limited","SINV00399415","10.53","Stationery","130187200","27/09/2017","Strategic Director Place","Business Manager - Place","R4308"
"Wolverhampton City Council","http://opendatacommunities.org/id/metropolitan-district-council/wolverhampton","700341","Acs Business Supplies Limited","SINV00399415","5.43","Stationery","130187200","27/09/2017","Strategic Director Place","Business Manager - Place","R4308"
"Wolverhampton City Council","http://opendatacommunities.org/id/metropolitan-district-council/wolverhampton","700341","Acs Business Supplies Limited","SINV00399415","25.98","Stationery","130187200","27/09/2017","Strategic Director Place","Business Manager - Place","R4308"
"Wolverhampton City Council","http://opendatacommunities.org/id/metropolitan-district-council/wolverhampton","700341","Acs Business Supplies Limited","SINV00399415","19.60","Stationery","130187200","27/09/2017","Strategic Director Place","Business Manager - Place","R4308"
"Wolverhampton City Council","http://opendatacommunities.org/id/metropolitan-district-council/wolverhampton","700341","Acs Business Supplies Limited","SINV00400905","42.44","Stationery","130188279","27/09/2017","Skills","IMPACT","R4308"
"Wolverhampton City Council","http://opendatacommunities.org/id/metropolitan-district-council/wolverhampton","700341","Acs Business Supplies Limited","SINV00400905","68.70","Stationery","130188279","27/09/2017","Skills","IMPACT","R4308"
"Wolverhampton City Council","http://opendatacommunities.org/id/metropolitan-district-council/wolverhampton","700341","Acs Business Supplies Limited","SINV00399922","8.98","Stationery","130187427","27/09/2017","Safeguarding","Head of Service Quality and Safeguarding","R4308"
"Wolverhampton City Council","http://opendatacommunities.org/id/metropolitan-district-council/wolverhampton","700341","Acs Business Supplies Limited","SINV00399922","0.50","Stationery","130187427","27/09/2017","Safeguarding","Head of Service Quality and Safeguarding","R4308"
"Wolverhampton City Council","http://opendatacommunities.org/id/metropolitan-district-council/wolverhampton","700341","Acs Business Supplies Limited","SINV00399922","0.99","Stationery","130187427","27/09/2017","Safeguarding","Head of Service Quality and Safeguarding","R4308"
"Wolverhampton City Council","http://opendatacommunities.org/id/metropolitan-district-council/wolverhampton","700341","Acs Business Supplies Limited","SINV00399922","1.62","Stationery","130187427","27/09/2017","Safeguarding","Head of Service Quality and Safeguarding","R4308"
"Wolverhampton City Council","http://opendatacommunities.org/id/metropolitan-district-council/wolverhampton","700341","Acs Business Supplies Limited","SINV00399922","2.93","Stationery","130187427","27/09/2017","Safeguarding","Head of Service Quality and Safeguarding","R4308"
"Wolverhampton City Council","http://opendatacommunities.org/id/metropolitan-district-council/wolverhampton","700341","Acs Business Supplies Limited","SINV00399922","21.39","Stationery","130187427","27/09/2017","Safeguarding","Head of Service Quality and Safeguarding","R4308"
"Wolverhampton City Council","http://opendatacommunities.org/id/metropolitan-district-council/wolverhampton","700341","Acs Business Supplies Limited","SINV00399922","2.04","Stationery","130187427","27/09/2017","Safeguarding","Head of Service Quality and Safeguarding","R4308"
"Wolverhampton City Council","http://opendatacommunities.org/id/metropolitan-district-council/wolverhampton","700341","Acs Business Supplies Limited","SINV00399922","2.13","Stationery","130187427","27/09/2017","Safeguarding","Head of Service Quality and Safeguarding","R4308"
"Wolverhampton City Council","http://opendatacommunities.org/id/metropolitan-district-council/wolverhampton","700341","Acs Business Supplies Limited","SINV00399922","1.92","Stationery","130187427","27/09/2017","Safeguarding","Head of Service Quality and Safeguarding","R4308"
"Wolverhampton City Council","http://opendatacommunities.org/id/metropolitan-district-council/wolverhampton","700341","Acs Business Supplies Limited","SINV00399922","4.55","Stationery","130187427","27/09/2017","Safeguarding","Head of Service Quality and Safeguarding","R4308"
"Wolverhampton City Council","http://opendatacommunities.org/id/metropolitan-district-council/wolverhampton","700341","Acs Business Supplies Limited","SINV00399922","4.27","Stationery","130187427","27/09/2017","Safeguarding","Head of Service Quality and Safeguarding","R4308"
"Wolverhampton City Council","http://opendatacommunities.org/id/metropolitan-district-council/wolverhampton","700341","Acs Business Supplies Limited","SINV00399922","28.00","Stationery","130187427","27/09/2017","Safeguarding","Head of Service Quality and Safeguarding","R4308"
"Wolverhampton City Council","http://opendatacommunities.org/id/metropolitan-district-council/wolverhampton","700341","Acs Business Supplies Limited","SINV00398206","25.64","Signage and Labels","130185983","13/09/2017","Licensing","Licensing - General","R4009"
"Wolverhampton City Council","http://opendatacommunities.org/id/metropolitan-district-council/wolverhampton","700341","Acs Business Supplies Limited","SINV00398631","4.55","Stationery","130186145","13/09/2017","Youth Offending","Youth Offending Team","R4308"
"Wolverhampton City Council","http://opendatacommunities.org/id/metropolitan-district-council/wolverhampton","700341","Acs Business Supplies Limited","SINV00398631","4.27","Stationery","130186145","13/09/2017","Youth Offending","Youth Offending Team","R4308"
"Wolverhampton City Council","http://opendatacommunities.org/id/metropolitan-district-council/wolverhampton","700341","Acs Business Supplies Limited","SINV00398631","26.58","Stationery","130186145","13/09/2017","Youth Offending","Youth Offending Team","R4308"
"Wolverhampton City Council","http://opendatacommunities.org/id/metropolitan-district-council/wolverhampton","700341","Acs Business Supplies Limited","SINV00398631","4.86","Stationery","130186145","13/09/2017","Youth Offending","Youth Offending Team","R4308"
"Wolverhampton City Council","http://opendatacommunities.org/id/metropolitan-district-council/wolverhampton","700341","Acs Business Supplies Limited","SCRN00048886","-14.64","Stationery","130185504","13/09/2017","Skills","IMPACT","R4308"
"Wolverhampton City Council","http://opendatacommunities.org/id/metropolitan-district-council/wolverhampton","700341","Acs Business Supplies Limited","SCRN00048886","14.64","Stationery","130185504","13/09/2017","Skills","IMPACT","R4308"
"Wolverhampton City Council","http://opendatacommunities.org/id/metropolitan-district-council/wolverhampton","700341","Acs Business Supplies Limited","SCRN00048886","-14.95","Stationery","130185504","13/09/2017","Skills","IMPACT","R4308"
"Wolverhampton City Council","http://opendatacommunities.org/id/metropolitan-district-council/wolverhampton","700341","Acs Business Supplies Limited","SINV00399214","19.37","Stationery","130187423","20/09/2017","Adult Education","Service Wide","R4308"
"Wolverhampton City Council","http://opendatacommunities.org/id/metropolitan-district-council/wolverhampton","700341","Acs Business Supplies Limited","SINV00398975","6.00","Stationery","130186545","20/09/2017","Bereavement Services","Cemeteries","R4308"
"Wolverhampton City Council","http://opendatacommunities.org/id/metropolitan-district-council/wolverhampton","700341","Acs Business Supplies Limited","SINV00398976","118.68","Stationery","130186951","20/09/2017","Legal Services","Legal Services","R4308"
"Wolverhampton City Council","http://opendatacommunities.org/id/metropolitan-district-council/wolverhampton","700341","Acs Business Supplies Limited","SINV00369041","48.24","Stationery","130159823","08/09/2017","Management and Administration","Public Health Support Costs","R4308"
"Wolverhampton City Council","http://opendatacommunities.org/id/metropolitan-district-council/wolverhampton","700341","Acs Business Supplies Limited","SINV00387191","20.97","Stationery","130176340","08/09/2017","Welfare Rights & Financial Assessment","Macmillan Welfare Rights Service","R4308"
"Wolverhampton City Council","http://opendatacommunities.org/id/metropolitan-district-council/wolverhampton","700341","Acs Business Supplies Limited","SINV00397533","41.42","Stationery","130185506","08/09/2017","Adult Education","Service Wide","R4308"
"Wolverhampton City Council","http://opendatacommunities.org/id/metropolitan-district-council/wolverhampton","700341","Acs Business Supplies Limited","SINV00397533","21.59","Stationery","130185506","08/09/2017","Adult Education","ICT Services","R4308"
"Wolverhampton City Council","http://opendatacommunities.org/id/metropolitan-district-council/wolverhampton","700341","Acs Business Supplies Limited","SINV00397533","39.99","Stationery","130185506","08/09/2017","Adult Education","ICT Services","R4308"
"Wolverhampton City Council","http://opendatacommunities.org/id/metropolitan-district-council/wolverhampton","700341","Acs Business Supplies Limited","SCRN00049162","-14.95","Stationery","130185809","15/09/2017","Facilities Management","i10 Facilities Management","R4308"
"Wolverhampton City Council","http://opendatacommunities.org/id/metropolitan-district-council/wolverhampton","700341","Acs Business Supplies Limited","SINV00395908","1,158.33","Stationery","130184831","06/09/2017","Adult Education","Service Wide","R4308"
"Wolverhampton City Council","http://opendatacommunities.org/id/metropolitan-district-council/wolverhampton","700341","Acs Business Supplies Limited","SCRN00048689","-14.95","Stationery","130185616","06/09/2017","Adult Education","Alan Garner Centre Building","R4308"
"Wolverhampton City Council","http://opendatacommunities.org/id/metropolitan-district-council/wolverhampton","700604","P Kitterick","00031","960.00","TPP - Maintenance Contractor - General","190370657","08/09/2017","Transportation","Cycling Schemes - Bikeability","R5720"
"Wolverhampton City Council","http://opendatacommunities.org/id/metropolitan-district-council/wolverhampton","700663","Partisip8/P Sicilia","735","1,873.52","TPP - Maintenance Contractor - General","190370651","08/09/2017","Transportation","Cycling Schemes - Bikeability","R5720"
"Wolverhampton City Council","http://opendatacommunities.org/id/metropolitan-district-council/wolverhampton","700684","Philip Lay","0020","510.00","TPP - Maintenance Contractor - General","190370656","08/09/2017","Transportation","Cycling Schemes - Bikeability","R5720"
"Wolverhampton City Council","http://opendatacommunities.org/id/metropolitan-district-council/wolverhampton","700762","R Millington","00033","560.00","TPP - Maintenance Contractor - General","190370652","08/09/2017","Transportation","Cycling Schemes - Bikeability","R5720"
"Wolverhampton City Council","http://opendatacommunities.org/id/metropolitan-district-council/wolverhampton","700770","Adt Fire And Security PLC","35536741 - 02","700.00","R&M - Departmental planned (internal)","130186721","06/09/2017","Maintenance Programme","Centralised R&M","R2000"
"Wolverhampton City Council","http://opendatacommunities.org/id/metropolitan-district-council/wolverhampton","700770","Adt Fire And Security PLC","35271538 - 02","172.00","R&M - Departmental planned (external)","130188922","27/09/2017","Facilities Management","Caretakers Community Centre","R2001"
"Wolverhampton City Council","http://opendatacommunities.org/id/metropolitan-district-council/wolverhampton","700770","Adt Fire And Security PLC","36219665 - 02","63.00","Fixtures and Fittings - R&M","130185810","01/09/2017","Maintenance Programme","Centralised R&M","R2502"
"Wolverhampton City Council","http://opendatacommunities.org/id/metropolitan-district-council/wolverhampton","700770","Adt Fire And Security PLC","32567797 - 02","550.00","Fixtures and Fittings - R&M","130184269","15/09/2017","Maintenance Programme","Centralised R&M","R2502"
"Wolverhampton City Council","http://opendatacommunities.org/id/metropolitan-district-council/wolverhampton","700770","Adt Fire And Security PLC","36006120 - 02","471.69","Fixtures and Fittings - R&M","130187428","13/09/2017","Maintenance Programme","Centralised R&M","R2502"
"Wolverhampton City Council","http://opendatacommunities.org/id/metropolitan-district-council/wolverhampton","700770","Adt Fire And Security PLC","36006284 - 02","623.00","Fixtures and Fittings - R&M","130185618","01/09/2017","Bereavement Services","Cemeteries","R2502"
"Wolverhampton City Council","http://opendatacommunities.org/id/metropolitan-district-council/wolverhampton","700770","Adt Fire And Security PLC","36027931 - 02","149.00","Fixtures and Fittings - R&M","130187699","15/09/2017","Facilities Management","Caretakers Community Centre","R2502"
"Wolverhampton City Council","http://opendatacommunities.org/id/metropolitan-district-council/wolverhampton","700770","Adt Fire And Security PLC","36279618 - 02","-163.00","Fixtures and Fittings - R&M","130186547","08/09/2017","Bereavement Services","Cemeteries","R2502"
"Wolverhampton City Council","http://opendatacommunities.org/id/metropolitan-district-council/wolverhampton","700770","Adt Fire And Security PLC","35801954 - 02","310.69","Fixtures and Fittings - R&M","130185367","06/09/2017","Learning Disability Provider","Learning Disabilities Management","R2502"
"Wolverhampton City Council","http://opendatacommunities.org/id/metropolitan-district-council/wolverhampton","700770","Adt Fire And Security PLC","35550177-02","79.50","R&M - Departmental planned (external)","130188923","27/09/2017","Facilities Management","Caretakers Community Centre","R2001"
"Wolverhampton City Council","http://opendatacommunities.org/id/metropolitan-district-council/wolverhampton","700770","Adt Fire And Security PLC","33311319-02","779.55","Services - Security","130187202","13/09/2017","Maintenance Programme","Centralised R&M","R4405"
"Wolverhampton City Council","http://opendatacommunities.org/id/metropolitan-district-council/wolverhampton","700770","Adt Fire And Security PLC","36091482 -02","590.16","Fixtures and Fittings - R&M","130187429","15/09/2017","Maintenance Programme","Centralised R&M","R2502"
"Wolverhampton City Council","http://opendatacommunities.org/id/metropolitan-district-council/wolverhampton","700770","Adt Fire And Security PLC","32805967 - 02","652.99","Fixtures and Fittings - R&M","130184270","08/09/2017","Maintenance Programme","Centralised R&M","R2502"
"Wolverhampton City Council","http://opendatacommunities.org/id/metropolitan-district-council/wolverhampton","700770","Adt Fire And Security PLC","36045975 - 02","-66.00","Services - Security","130187203","13/09/2017","Maintenance Programme","Centralised R&M","R4405"
"Wolverhampton City Council","http://opendatacommunities.org/id/metropolitan-district-council/wolverhampton","700770","Adt Fire And Security PLC","36284723 - 02","149.00","Fixtures and Fittings - R&M","130187430","13/09/2017","Facilities Management","Caretakers Community Centre","R2502"
"Wolverhampton City Council","http://opendatacommunities.org/id/metropolitan-district-council/wolverhampton","700770","Adt Fire And Security PLC","36142902 - 02","87.57","Services - Security","130189339","29/09/2017","Facilities Management","Caretakers Community Centre","R4405"
"Wolverhampton City Council","http://opendatacommunities.org/id/metropolitan-district-council/wolverhampton","700770","Adt Fire And Security PLC","35257100 - 02","850.01","Fixtures and Fittings - R&M","130184977","01/09/2017","Facilities Management","Caretakers Community Centre","R2502"
"Wolverhampton City Council","http://opendatacommunities.org/id/metropolitan-district-council/wolverhampton","700979","Af Blakemore/Blakemore Foodservice","5552600","202.55","Provisions (Resale)","130184288","27/09/2017","Visitor Economy","Bantock - Tea Rooms","R4102"
"Wolverhampton City Council","http://opendatacommunities.org/id/metropolitan-district-council/wolverhampton","700979","Af Blakemore/Blakemore Foodservice","5552600","-202.55","Provisions (Resale)","130184288","27/09/2017","Visitor Economy","Bantock - Tea Rooms","R4102"
"Wolverhampton City Council","http://opendatacommunities.org/id/metropolitan-district-council/wolverhampton","700979","Af Blakemore/Blakemore Foodservice","5552600","114.85","Provisions (Resale)","130184288","27/09/2017","Visitor Economy","Bantock - Tea Rooms","R4102"
"Wolverhampton City Council","http://opendatacommunities.org/id/metropolitan-district-council/wolverhampton","700979","Af Blakemore/Blakemore Foodservice","5552600","87.70","Provisions (Resale)","130184288","27/09/2017","Visitor Economy","Bantock - Tea Rooms","R4102"
"Wolverhampton City Council","http://opendatacommunities.org/id/metropolitan-district-council/wolverhampton","700979","Af Blakemore/Blakemore Foodservice","5448751","-5.13","Provisions (Not for resale)","130184559","27/09/2017","Learning Disability Provider","Duke Street Bungalows","R4101"
"Wolverhampton City Council","http://opendatacommunities.org/id/metropolitan-district-council/wolverhampton","700979","Af Blakemore/Blakemore Foodservice","5575899","194.07","Provisions (Resale)","130184048","13/09/2017","Visitor Economy","Art Gallery Tea Room","R4102"
"Wolverhampton City Council","http://opendatacommunities.org/id/metropolitan-district-council/wolverhampton","700979","Af Blakemore/Blakemore Foodservice","5575899","-194.07","Provisions (Resale)","130184048","13/09/2017","Visitor Economy","Art Gallery Tea Room","R4102"
"Wolverhampton City Council","http://opendatacommunities.org/id/metropolitan-district-council/wolverhampton","700979","Af Blakemore/Blakemore Foodservice","5575899","13.51","Provisions (Resale)","130184048","13/09/2017","Visitor Economy","Art Gallery Tea Room","R4102"
"Wolverhampton City Council","http://opendatacommunities.org/id/metropolitan-district-council/wolverhampton","700979","Af Blakemore/Blakemore Foodservice","5575899","180.56","Provisions (Resale)","130184048","13/09/2017","Visitor Economy","Art Gallery Tea Room","R4102"
"Wolverhampton City Council","http://opendatacommunities.org/id/metropolitan-district-council/wolverhampton","700979","Af Blakemore/Blakemore Foodservice","5582615","28.94","Provisions (Not for resale)","130183799","20/09/2017","Older People Provider Services","Blakenhall Resource Centre","R4101"
"Wolverhampton City Council","http://opendatacommunities.org/id/metropolitan-district-council/wolverhampton","700979","Af Blakemore/Blakemore Foodservice","5582626-Correction of amount","389.77","Provisions (Not for resale)","130185499","20/09/2017","Older People Provider Services","Blakenhall Resource Centre","R4101"
"Wolverhampton City Council","http://opendatacommunities.org/id/metropolitan-district-council/wolverhampton","700979","Af Blakemore/Blakemore Foodservice","5582626-Correction of amount","-389.77","Provisions (Not for resale)","130185499","20/09/2017","Older People Provider Services","Blakenhall Resource Centre","R4101"
"Wolverhampton City Council","http://opendatacommunities.org/id/metropolitan-district-council/wolverhampton","700979","Af Blakemore/Blakemore Foodservice","5582626-Correction of amount","40.34","Provisions (Not for resale)","130185499","20/09/2017","Older People Provider Services","Blakenhall Resource Centre","R4101"
"Wolverhampton City Council","http://opendatacommunities.org/id/metropolitan-district-council/wolverhampton","700979","Af Blakemore/Blakemore Foodservice","5582626-Correction of amount","349.43","Provisions (Not for resale)","130185499","20/09/2017","Older People Provider Services","Blakenhall Resource Centre","R4101"
"Wolverhampton City Council","http://opendatacommunities.org/id/metropolitan-district-council/wolverhampton","700979","Af Blakemore/Blakemore Foodservice","5569917","275.06","Provisions (Resale)","130184043","13/09/2017","Visitor Economy","Bantock - Tea Rooms","R4102"
"Wolverhampton City Council","http://opendatacommunities.org/id/metropolitan-district-council/wolverhampton","700979","Af Blakemore/Blakemore Foodservice","5569917","-275.06","Provisions (Resale)","130184043","13/09/2017","Visitor Economy","Bantock - Tea Rooms","R4102"
"Wolverhampton City Council","http://opendatacommunities.org/id/metropolitan-district-council/wolverhampton","700979","Af Blakemore/Blakemore Foodservice","5569917","201.55","Provisions (Resale)","130184043","13/09/2017","Visitor Economy","Bantock - Tea Rooms","R4102"
"Wolverhampton City Council","http://opendatacommunities.org/id/metropolitan-district-council/wolverhampton","700979","Af Blakemore/Blakemore Foodservice","5569917","73.51","Provisions (Resale)","130184043","13/09/2017","Visitor Economy","Bantock - Tea Rooms","R4102"
"Wolverhampton City Council","http://opendatacommunities.org/id/metropolitan-district-council/wolverhampton","700979","Af Blakemore/Blakemore Foodservice","5575741","138.20","Provisions (Not for resale)","130184047","06/09/2017","Learning Disability Provider","Duke Street Bungalows","R4101"
"Wolverhampton City Council","http://opendatacommunities.org/id/metropolitan-district-council/wolverhampton","700979","Af Blakemore/Blakemore Foodservice","5575741","-138.20","Provisions (Not for resale)","130184047","06/09/2017","Learning Disability Provider","Duke Street Bungalows","R4101"
"Wolverhampton City Council","http://opendatacommunities.org/id/metropolitan-district-council/wolverhampton","700979","Af Blakemore/Blakemore Foodservice","5575741","12.64","Provisions (Not for resale)","130184047","06/09/2017","Learning Disability Provider","Duke Street Bungalows","R4101"
"Wolverhampton City Council","http://opendatacommunities.org/id/metropolitan-district-council/wolverhampton","700979","Af Blakemore/Blakemore Foodservice","5575741","138.20","Provisions (Not for resale)","130184047","06/09/2017","Learning Disability Provider","Duke Street Bungalows","R4101"
"Wolverhampton City Council","http://opendatacommunities.org/id/metropolitan-district-council/wolverhampton","700979","Af Blakemore/Blakemore Foodservice","5581704","239.05","Provisions (Not for resale)","130184054","06/09/2017","Learning Disability Provider","Duke Street Bungalows","R4101"
"Wolverhampton City Council","http://opendatacommunities.org/id/metropolitan-district-council/wolverhampton","700979","Af Blakemore/Blakemore Foodservice","5581704","-239.05","Provisions (Not for resale)","130184054","06/09/2017","Learning Disability Provider","Duke Street Bungalows","R4101"
"Wolverhampton City Council","http://opendatacommunities.org/id/metropolitan-district-council/wolverhampton","700979","Af Blakemore/Blakemore Foodservice","5581704","14.70","Provisions (Not for resale)","130184054","06/09/2017","Learning Disability Provider","Duke Street Bungalows","R4101"
"Wolverhampton City Council","http://opendatacommunities.org/id/metropolitan-district-council/wolverhampton","700979","Af Blakemore/Blakemore Foodservice","5581704","239.05","Provisions (Not for resale)","130184054","06/09/2017","Learning Disability Provider","Duke Street Bungalows","R4101"
"Wolverhampton City Council","http://opendatacommunities.org/id/metropolitan-district-council/wolverhampton","700979","Af Blakemore/Blakemore Foodservice","WCC000295","42.92","Provisions (Not for resale)","130183550","06/09/2017","Leisure Services","WV Active Catering","R4101"
"Wolverhampton City Council","http://opendatacommunities.org/id/metropolitan-district-council/wolverhampton","700979","Af Blakemore/Blakemore Foodservice","WCC000295","130.18","Provisions (Not for resale)","130183550","06/09/2017","Leisure Services","WV Active Catering","R4101"
"Wolverhampton City Council","http://opendatacommunities.org/id/metropolitan-district-council/wolverhampton","700979","Af Blakemore/Blakemore Foodservice","5580103","120.46","Provisions (Resale)","130183796","06/09/2017","Older People Provider Services","Bradley Lodge Resource Centre","R4102"
"Wolverhampton City Council","http://opendatacommunities.org/id/metropolitan-district-council/wolverhampton","700979","Af Blakemore/Blakemore Foodservice","5575612","18.24","Provisions (Resale)","130183795","06/09/2017","Visitor Economy","Bantock - Tea Rooms","R4102"
"Wolverhampton City Council","http://opendatacommunities.org/id/metropolitan-district-council/wolverhampton","700979","Af Blakemore/Blakemore Foodservice","5573049","57.26","Provisions (Resale)","130184045","06/09/2017","Older People Provider Services","Bradley Lodge Resource Centre","R4102"
"Wolverhampton City Council","http://opendatacommunities.org/id/metropolitan-district-council/wolverhampton","700979","Af Blakemore/Blakemore Foodservice","WCC000293","17.54","Provisions (Not for resale)","130183549","06/09/2017","Leisure Services","Bert Williams Leisure Centre Caf�","R4101"
"Wolverhampton City Council","http://opendatacommunities.org/id/metropolitan-district-council/wolverhampton","700979","Af Blakemore/Blakemore Foodservice","WCC000293","469.54","Provisions (Not for resale)","130183549","06/09/2017","Leisure Services","Bert Williams Leisure Centre Caf�","R4101"
"Wolverhampton City Council","http://opendatacommunities.org/id/metropolitan-district-council/wolverhampton","700979","Af Blakemore/Blakemore Foodservice","5558326","285.82","Provisions (Resale)","130184036","06/09/2017","Visitor Economy","Bantock - Tea Rooms","R4102"
"Wolverhampton City Council","http://opendatacommunities.org/id/metropolitan-district-council/wolverhampton","700979","Af Blakemore/Blakemore Foodservice","5571954","447.91","Provisions (Resale)","130184044","06/09/2017","Older People Provider Services","Bradley Lodge Resource Centre","R4102"
"Wolverhampton City Council","http://opendatacommunities.org/id/metropolitan-district-council/wolverhampton","700979","Af Blakemore/Blakemore Foodservice","5544206","442.55","Provisions (Resale)","130184031","27/09/2017","Visitor Economy","Bantock - Tea Rooms","R4102"
"Wolverhampton City Council","http://opendatacommunities.org/id/metropolitan-district-council/wolverhampton","700979","Af Blakemore/Blakemore Foodservice","5544206","-442.55","Provisions (Resale)","130184031","27/09/2017","Visitor Economy","Bantock - Tea Rooms","R4102"
"Wolverhampton City Council","http://opendatacommunities.org/id/metropolitan-district-council/wolverhampton","700979","Af Blakemore/Blakemore Foodservice","5544206","212.22","Provisions (Resale)","130184031","27/09/2017","Visitor Economy","Bantock - Tea Rooms","R4102"
"Wolverhampton City Council","http://opendatacommunities.org/id/metropolitan-district-council/wolverhampton","700979","Af Blakemore/Blakemore Foodservice","5544206","230.33","Provisions (Resale)","130184031","27/09/2017","Visitor Economy","Bantock - Tea Rooms","R4102"
"Wolverhampton City Council","http://opendatacommunities.org/id/metropolitan-district-council/wolverhampton","700979","Af Blakemore/Blakemore Foodservice","5542433","208.81","Provisions (Resale)","130184028","27/09/2017","Visitor Economy","Art Gallery Tea Room","R4102"
"Wolverhampton City Council","http://opendatacommunities.org/id/metropolitan-district-council/wolverhampton","700979","Af Blakemore/Blakemore Foodservice","5542433","-208.81","Provisions (Resale)","130184028","27/09/2017","Visitor Economy","Art Gallery Tea Room","R4102"
"Wolverhampton City Council","http://opendatacommunities.org/id/metropolitan-district-council/wolverhampton","700979","Af Blakemore/Blakemore Foodservice","5542433","80.10","Provisions (Resale)","130184028","27/09/2017","Visitor Economy","Art Gallery Tea Room","R4102"
"Wolverhampton City Council","http://opendatacommunities.org/id/metropolitan-district-council/wolverhampton","700979","Af Blakemore/Blakemore Foodservice","5542433","128.71","Provisions (Resale)","130184028","27/09/2017","Visitor Economy","Art Gallery Tea Room","R4102"
"Wolverhampton City Council","http://opendatacommunities.org/id/metropolitan-district-council/wolverhampton","700979","Af Blakemore/Blakemore Foodservice","5560222","245.49","Provisions (Resale)","130184037","27/09/2017","Visitor Economy","Art Gallery Tea Room","R4102"
"Wolverhampton City Council","http://opendatacommunities.org/id/metropolitan-district-council/wolverhampton","700979","Af Blakemore/Blakemore Foodservice","5560222","-245.49","Provisions (Resale)","130184037","27/09/2017","Visitor Economy","Art Gallery Tea Room","R4102"
"Wolverhampton City Council","http://opendatacommunities.org/id/metropolitan-district-council/wolverhampton","700979","Af Blakemore/Blakemore Foodservice","5560222","145.82","Provisions (Resale)","130184037","27/09/2017","Visitor Economy","Art Gallery Tea Room","R4102"
"Wolverhampton City Council","http://opendatacommunities.org/id/metropolitan-district-council/wolverhampton","700979","Af Blakemore/Blakemore Foodservice","5560222","99.67","Provisions (Resale)","130184037","27/09/2017","Visitor Economy","Art Gallery Tea Room","R4102"
"Wolverhampton City Council","http://opendatacommunities.org/id/metropolitan-district-council/wolverhampton","700979","Af Blakemore/Blakemore Foodservice","5434732","386.73","Provisions (Resale)","130172289","13/09/2017","Visitor Economy","Bantock - Tea Rooms","R4102"
"Wolverhampton City Council","http://opendatacommunities.org/id/metropolitan-district-council/wolverhampton","700979","Af Blakemore/Blakemore Foodservice","5434732","-386.73","Provisions (Resale)","130172289","13/09/2017","Visitor Economy","Bantock - Tea Rooms","R4102"
"Wolverhampton City Council","http://opendatacommunities.org/id/metropolitan-district-council/wolverhampton","700979","Af Blakemore/Blakemore Foodservice","5434732","217.13","Provisions (Resale)","130172289","13/09/2017","Visitor Economy","Bantock - Tea Rooms","R4102"
"Wolverhampton City Council","http://opendatacommunities.org/id/metropolitan-district-council/wolverhampton","700979","Af Blakemore/Blakemore Foodservice","5434732","169.60","Provisions (Resale)","130172289","13/09/2017","Visitor Economy","Bantock - Tea Rooms","R4102"
"Wolverhampton City Council","http://opendatacommunities.org/id/metropolitan-district-council/wolverhampton","700979","Af Blakemore/Blakemore Foodservice","5581561","506.80","Provisions (Resale)","130184053","13/09/2017","Visitor Economy","Art Gallery Tea Room","R4102"
"Wolverhampton City Council","http://opendatacommunities.org/id/metropolitan-district-council/wolverhampton","700979","Af Blakemore/Blakemore Foodservice","5536761","222.65","Provisions (Not for resale)","130183792","20/09/2017","Older People Provider Services","Blakenhall Resource Centre","R4101"
"Wolverhampton City Council","http://opendatacommunities.org/id/metropolitan-district-council/wolverhampton","700979","Af Blakemore/Blakemore Foodservice","5536761","-222.65","Provisions (Not for resale)","130183792","20/09/2017","Older People Provider Services","Blakenhall Resource Centre","R4101"
"Wolverhampton City Council","http://opendatacommunities.org/id/metropolitan-district-council/wolverhampton","700979","Af Blakemore/Blakemore Foodservice","5536761","26.09","Provisions (Not for resale)","130183792","20/09/2017","Older People Provider Services","Blakenhall Resource Centre","R4101"
"Wolverhampton City Council","http://opendatacommunities.org/id/metropolitan-district-council/wolverhampton","700979","Af Blakemore/Blakemore Foodservice","5536761","222.65","Provisions (Not for resale)","130183792","20/09/2017","Older People Provider Services","Blakenhall Resource Centre","R4101"
"Wolverhampton City Council","http://opendatacommunities.org/id/metropolitan-district-council/wolverhampton","700979","Af Blakemore/Blakemore Foodservice","5578036-Correction of amount","6.55","Provisions (Not for resale)","130185498","20/09/2017","Older People Provider Services","Blakenhall Resource Centre","R4101"
"Wolverhampton City Council","http://opendatacommunities.org/id/metropolitan-district-council/wolverhampton","700979","Af Blakemore/Blakemore Foodservice","5578036-Correction of amount","-6.55","Provisions (Not for resale)","130185498","20/09/2017","Older People Provider Services","Blakenhall Resource Centre","R4101"
"Wolverhampton City Council","http://opendatacommunities.org/id/metropolitan-district-council/wolverhampton","700979","Af Blakemore/Blakemore Foodservice","5578036-Correction of amount","4.12","Provisions (Not for resale)","130185498","20/09/2017","Older People Provider Services","Blakenhall Resource Centre","R4101"
"Wolverhampton City Council","http://opendatacommunities.org/id/metropolitan-district-council/wolverhampton","700979","Af Blakemore/Blakemore Foodservice","5578036-Correction of amount","2.43","Provisions (Not for resale)","130185498","20/09/2017","Older People Provider Services","Blakenhall Resource Centre","R4101"
"Wolverhampton City Council","http://opendatacommunities.org/id/metropolitan-district-council/wolverhampton","700979","Af Blakemore/Blakemore Foodservice","5552242","269.62","Provisions (Resale)","130184034","01/09/2017","Older People Provider Services","Bradley Lodge Resource Centre","R4102"
"Wolverhampton City Council","http://opendatacommunities.org/id/metropolitan-district-council/wolverhampton","700979","Af Blakemore/Blakemore Foodservice","5553424","304.93","Provisions (Not for resale)","130184035","06/09/2017","Learning Disability Provider","Duke Street Bungalows","R4101"
"Wolverhampton City Council","http://opendatacommunities.org/id/metropolitan-district-council/wolverhampton","700979","Af Blakemore/Blakemore Foodservice","5553424","-304.93","Provisions (Not for resale)","130184035","06/09/2017","Learning Disability Provider","Duke Street Bungalows","R4101"
"Wolverhampton City Council","http://opendatacommunities.org/id/metropolitan-district-council/wolverhampton","700979","Af Blakemore/Blakemore Foodservice","5553424","8.88","Provisions (Not for resale)","130184035","06/09/2017","Learning Disability Provider","Duke Street Bungalows","R4101"
"Wolverhampton City Council","http://opendatacommunities.org/id/metropolitan-district-council/wolverhampton","700979","Af Blakemore/Blakemore Foodservice","5553424","304.93","Provisions (Not for resale)","130184035","06/09/2017","Learning Disability Provider","Duke Street Bungalows","R4101"
"Wolverhampton City Council","http://opendatacommunities.org/id/metropolitan-district-council/wolverhampton","700979","Af Blakemore/Blakemore Foodservice","5581766","241.56","Provisions (Not for resale)","130184055","06/09/2017","Learning Disability Provider","Duke Street Bungalows","R4101"
"Wolverhampton City Council","http://opendatacommunities.org/id/metropolitan-district-council/wolverhampton","700979","Af Blakemore/Blakemore Foodservice","5581766","-241.56","Provisions (Not for resale)","130184055","06/09/2017","Learning Disability Provider","Duke Street Bungalows","R4101"
"Wolverhampton City Council","http://opendatacommunities.org/id/metropolitan-district-council/wolverhampton","700979","Af Blakemore/Blakemore Foodservice","5581766","19.95","Provisions (Not for resale)","130184055","06/09/2017","Learning Disability Provider","Duke Street Bungalows","R4101"
"Wolverhampton City Council","http://opendatacommunities.org/id/metropolitan-district-council/wolverhampton","700979","Af Blakemore/Blakemore Foodservice","5581766","241.56","Provisions (Not for resale)","130184055","06/09/2017","Learning Disability Provider","Duke Street Bungalows","R4101"
"Wolverhampton City Council","http://opendatacommunities.org/id/metropolitan-district-council/wolverhampton","700979","Af Blakemore/Blakemore Foodservice","WCC000291","285.95","Provisions (Not for resale)","130183548","06/09/2017","Leisure Services","WV Active Catering - Central","R4101"
"Wolverhampton City Council","http://opendatacommunities.org/id/metropolitan-district-council/wolverhampton","700979","Af Blakemore/Blakemore Foodservice","WCC000291","695.32","Provisions (Not for resale)","130183548","06/09/2017","Leisure Services","WV Active Catering - Central","R4101"
"Wolverhampton City Council","http://opendatacommunities.org/id/metropolitan-district-council/wolverhampton","700979","Af Blakemore/Blakemore Foodservice","5574489","460.39","Provisions (Resale)","130184046","06/09/2017","Visitor Economy","Bantock - Tea Rooms","R4102"
"Wolverhampton City Council","http://opendatacommunities.org/id/metropolitan-district-council/wolverhampton","700979","Af Blakemore/Blakemore Foodservice","5585908","331.87","Provisions (Resale)","130184057","06/09/2017","Visitor Economy","Bantock - Tea Rooms","R4102"
"Wolverhampton City Council","http://opendatacommunities.org/id/metropolitan-district-council/wolverhampton","700979","Af Blakemore/Blakemore Foodservice","WCC000300","55,247.06","Provisions (Resale)","130183555","06/09/2017","Catering","Education Catering - General Overheads","R4102"
"Wolverhampton City Council","http://opendatacommunities.org/id/metropolitan-district-council/wolverhampton","700979","Af Blakemore/Blakemore Foodservice","WCC000300","-55,247.06","Provisions (Resale)","130183555","06/09/2017","Catering","Education Catering - General Overheads","R4102"
"Wolverhampton City Council","http://opendatacommunities.org/id/metropolitan-district-council/wolverhampton","700979","Af Blakemore/Blakemore Foodservice","WCC000300","54,826.55","Provisions (Resale)","130183555","06/09/2017","Catering","Education Catering - General Overheads","R4102"
"Wolverhampton City Council","http://opendatacommunities.org/id/metropolitan-district-council/wolverhampton","700979","Af Blakemore/Blakemore Foodservice","WCC000300","420.51","Provisions (Resale)","130183555","06/09/2017","Catering","Education Catering - General Overheads","R4102"
"Wolverhampton City Council","http://opendatacommunities.org/id/metropolitan-district-council/wolverhampton","700979","Af Blakemore/Blakemore Foodservice","WCC000298","2,776.20","Provisions (Resale)","130183553","06/09/2017","Catering","Civic Centre Catering","R4102"
"Wolverhampton City Council","http://opendatacommunities.org/id/metropolitan-district-council/wolverhampton","700979","Af Blakemore/Blakemore Foodservice","WCC000298","-2,776.20","Provisions (Resale)","130183553","06/09/2017","Catering","Civic Centre Catering","R4102"
"Wolverhampton City Council","http://opendatacommunities.org/id/metropolitan-district-council/wolverhampton","700979","Af Blakemore/Blakemore Foodservice","WCC000298","1,321.21","Provisions (Resale)","130183553","06/09/2017","Catering","Civic Centre Catering","R4102"
"Wolverhampton City Council","http://opendatacommunities.org/id/metropolitan-district-council/wolverhampton","700979","Af Blakemore/Blakemore Foodservice","WCC000298","1,454.99","Provisions (Resale)","130183553","06/09/2017","Catering","Civic Centre Catering","R4102"
"Wolverhampton City Council","http://opendatacommunities.org/id/metropolitan-district-council/wolverhampton","700979","Af Blakemore/Blakemore Foodservice","5180589","9.51","Provisions (Resale)","130186839","06/09/2017","Older People Provider Services","Bradley Lodge Resource Centre","R4102"
"Wolverhampton City Council","http://opendatacommunities.org/id/metropolitan-district-council/wolverhampton","700979","Af Blakemore/Blakemore Foodservice","5180589","-9.51","Provisions (Resale)","130186839","06/09/2017","Older People Provider Services","Bradley Lodge Resource Centre","R4102"
"Wolverhampton City Council","http://opendatacommunities.org/id/metropolitan-district-council/wolverhampton","700979","Af Blakemore/Blakemore Foodservice","5517572","27.00","Provisions (Resale)","130186847","06/09/2017","Older People Provider Services","Bradley Lodge Resource Centre","R4102"
"Wolverhampton City Council","http://opendatacommunities.org/id/metropolitan-district-council/wolverhampton","700979","Af Blakemore/Blakemore Foodservice","5180589","5.39","Provisions (Resale)","130186839","06/09/2017","Older People Provider Services","Bradley Lodge Resource Centre","R4102"
"Wolverhampton City Council","http://opendatacommunities.org/id/metropolitan-district-council/wolverhampton","700979","Af Blakemore/Blakemore Foodservice","5180589","4.12","Provisions (Resale)","130186839","06/09/2017","Older People Provider Services","Bradley Lodge Resource Centre","R4102"
"Wolverhampton City Council","http://opendatacommunities.org/id/metropolitan-district-council/wolverhampton","700979","Af Blakemore/Blakemore Foodservice","WCC000297","510.90","Provisions (Resale)","130183552","06/09/2017","Catering","Civic Centre Catering","R4102"
"Wolverhampton City Council","http://opendatacommunities.org/id/metropolitan-district-council/wolverhampton","700979","Af Blakemore/Blakemore Foodservice","5525560","239.56","Provisions (Resale)","130184283","27/09/2017","Visitor Economy","Bantock - Tea Rooms","R4102"
"Wolverhampton City Council","http://opendatacommunities.org/id/metropolitan-district-council/wolverhampton","700979","Af Blakemore/Blakemore Foodservice","5525560","-239.56","Provisions (Resale)","130184283","27/09/2017","Visitor Economy","Bantock - Tea Rooms","R4102"
"Wolverhampton City Council","http://opendatacommunities.org/id/metropolitan-district-council/wolverhampton","700979","Af Blakemore/Blakemore Foodservice","5525560","50.79","Provisions (Resale)","130184283","27/09/2017","Visitor Economy","Bantock - Tea Rooms","R4102"
"Wolverhampton City Council","http://opendatacommunities.org/id/metropolitan-district-council/wolverhampton","700979","Af Blakemore/Blakemore Foodservice","5525560","188.77","Provisions (Resale)","130184283","27/09/2017","Visitor Economy","Bantock - Tea Rooms","R4102"
"Wolverhampton City Council","http://opendatacommunities.org/id/metropolitan-district-council/wolverhampton","700979","Af Blakemore/Blakemore Foodservice","5551490","219.55","Provisions (Resale)","130184567","27/09/2017","Visitor Economy","Art Gallery Tea Room","R4102"
"Wolverhampton City Council","http://opendatacommunities.org/id/metropolitan-district-council/wolverhampton","700979","Af Blakemore/Blakemore Foodservice","5551490","-219.55","Provisions (Resale)","130184567","27/09/2017","Visitor Economy","Art Gallery Tea Room","R4102"
"Wolverhampton City Council","http://opendatacommunities.org/id/metropolitan-district-council/wolverhampton","700979","Af Blakemore/Blakemore Foodservice","5551490","198.56","Provisions (Resale)","130184567","27/09/2017","Visitor Economy","Art Gallery Tea Room","R4102"
"Wolverhampton City Council","http://opendatacommunities.org/id/metropolitan-district-council/wolverhampton","700979","Af Blakemore/Blakemore Foodservice","5551490","20.99","Provisions (Resale)","130184567","27/09/2017","Visitor Economy","Art Gallery Tea Room","R4102"
"Wolverhampton City Council","http://opendatacommunities.org/id/metropolitan-district-council/wolverhampton","700979","Af Blakemore/Blakemore Foodservice","5568727","337.23","Provisions (Resale)","130184042","13/09/2017","Visitor Economy","Art Gallery Tea Room","R4102"
"Wolverhampton City Council","http://opendatacommunities.org/id/metropolitan-district-council/wolverhampton","700979","Af Blakemore/Blakemore Foodservice","5568727","-337.23","Provisions (Resale)","130184042","13/09/2017","Visitor Economy","Art Gallery Tea Room","R4102"
"Wolverhampton City Council","http://opendatacommunities.org/id/metropolitan-district-council/wolverhampton","700979","Af Blakemore/Blakemore Foodservice","5568727","173.46","Provisions (Resale)","130184042","13/09/2017","Visitor Economy","Art Gallery Tea Room","R4102"
"Wolverhampton City Council","http://opendatacommunities.org/id/metropolitan-district-council/wolverhampton","700979","Af Blakemore/Blakemore Foodservice","5568727","163.77","Provisions (Resale)","130184042","13/09/2017","Visitor Economy","Art Gallery Tea Room","R4102"
"Wolverhampton City Council","http://opendatacommunities.org/id/metropolitan-district-council/wolverhampton","700979","Af Blakemore/Blakemore Foodservice","5524384","420.15","Provisions (Resale)","130184281","13/09/2017","Visitor Economy","Art Gallery Tea Room","R4102"
"Wolverhampton City Council","http://opendatacommunities.org/id/metropolitan-district-council/wolverhampton","700979","Af Blakemore/Blakemore Foodservice","5524384","-420.15","Provisions (Resale)","130184281","13/09/2017","Visitor Economy","Art Gallery Tea Room","R4102"
"Wolverhampton City Council","http://opendatacommunities.org/id/metropolitan-district-council/wolverhampton","700979","Af Blakemore/Blakemore Foodservice","5524384","113.93","Provisions (Resale)","130184281","13/09/2017","Visitor Economy","Art Gallery Tea Room","R4102"
"Wolverhampton City Council","http://opendatacommunities.org/id/metropolitan-district-council/wolverhampton","700979","Af Blakemore/Blakemore Foodservice","5524384","306.22","Provisions (Resale)","130184281","13/09/2017","Visitor Economy","Art Gallery Tea Room","R4102"
"Wolverhampton City Council","http://opendatacommunities.org/id/metropolitan-district-council/wolverhampton","700979","Af Blakemore/Blakemore Foodservice","5545684","71.12","Provisions (Not for resale)","130182919","20/09/2017","Older People Provider Services","Blakenhall Resource Centre","R4101"
"Wolverhampton City Council","http://opendatacommunities.org/id/metropolitan-district-council/wolverhampton","700979","Af Blakemore/Blakemore Foodservice","5545684","-71.12","Provisions (Not for resale)","130182919","20/09/2017","Older People Provider Services","Blakenhall Resource Centre","R4101"
"Wolverhampton City Council","http://opendatacommunities.org/id/metropolitan-district-council/wolverhampton","700979","Af Blakemore/Blakemore Foodservice","5545684","71.12","Provisions (Not for resale)","130182919","20/09/2017","Older People Provider Services","Blakenhall Resource Centre","R4101"
"Wolverhampton City Council","http://opendatacommunities.org/id/metropolitan-district-council/wolverhampton","700979","Af Blakemore/Blakemore Foodservice","5526954","24.76","Provisions (Not for resale)","130183791","20/09/2017","Older People Provider Services","Blakenhall Resource Centre","R4101"
"Wolverhampton City Council","http://opendatacommunities.org/id/metropolitan-district-council/wolverhampton","700979","Af Blakemore/Blakemore Foodservice","5526954","-24.76","Provisions (Not for resale)","130183791","20/09/2017","Older People Provider Services","Blakenhall Resource Centre","R4101"
"Wolverhampton City Council","http://opendatacommunities.org/id/metropolitan-district-council/wolverhampton","700979","Af Blakemore/Blakemore Foodservice","5526954","4.12","Provisions (Not for resale)","130183791","20/09/2017","Older People Provider Services","Blakenhall Resource Centre","R4101"
"Wolverhampton City Council","http://opendatacommunities.org/id/metropolitan-district-council/wolverhampton","700979","Af Blakemore/Blakemore Foodservice","5526954","20.64","Provisions (Not for resale)","130183791","20/09/2017","Older People Provider Services","Blakenhall Resource Centre","R4101"
"Wolverhampton City Council","http://opendatacommunities.org/id/metropolitan-district-council/wolverhampton","700979","Af Blakemore/Blakemore Foodservice","5581763","114.66","Provisions (Not for resale)","130183798","06/09/2017","Learning Disability Provider","Duke Street Bungalows","R4101"
"Wolverhampton City Council","http://opendatacommunities.org/id/metropolitan-district-council/wolverhampton","700979","Af Blakemore/Blakemore Foodservice","5581763","-114.66","Provisions (Not for resale)","130183798","06/09/2017","Learning Disability Provider","Duke Street Bungalows","R4101"
"Wolverhampton City Council","http://opendatacommunities.org/id/metropolitan-district-council/wolverhampton","700979","Af Blakemore/Blakemore Foodservice","5581763","114.66","Provisions (Not for resale)","130183798","06/09/2017","Learning Disability Provider","Duke Street Bungalows","R4101"
"Wolverhampton City Council","http://opendatacommunities.org/id/metropolitan-district-council/wolverhampton","700979","Af Blakemore/Blakemore Foodservice","5551670","98.92","Provisions (Not for resale)","130184287","06/09/2017","Learning Disability Provider","Duke Street Bungalows","R4101"
"Wolverhampton City Council","http://opendatacommunities.org/id/metropolitan-district-council/wolverhampton","700979","Af Blakemore/Blakemore Foodservice","5551670","-98.92","Provisions (Not for resale)","130184287","06/09/2017","Learning Disability Provider","Duke Street Bungalows","R4101"
"Wolverhampton City Council","http://opendatacommunities.org/id/metropolitan-district-council/wolverhampton","700979","Af Blakemore/Blakemore Foodservice","5551670","52.83","Provisions (Not for resale)","130184287","06/09/2017","Learning Disability Provider","Duke Street Bungalows","R4101"
"Wolverhampton City Council","http://opendatacommunities.org/id/metropolitan-district-council/wolverhampton","700979","Af Blakemore/Blakemore Foodservice","5551670","98.92","Provisions (Not for resale)","130184287","06/09/2017","Learning Disability Provider","Duke Street Bungalows","R4101"
"Wolverhampton City Council","http://opendatacommunities.org/id/metropolitan-district-council/wolverhampton","700979","Af Blakemore/Blakemore Foodservice","WCC000296","480.89","Provisions (Resale)","130183551","06/09/2017","Catering","Meals on Wheels","R4102"
"Wolverhampton City Council","http://opendatacommunities.org/id/metropolitan-district-council/wolverhampton","700979","Af Blakemore/Blakemore Foodservice","WCC000296","-480.89","Provisions (Resale)","130183551","06/09/2017","Catering","Meals on Wheels","R4102"
"Wolverhampton City Council","http://opendatacommunities.org/id/metropolitan-district-council/wolverhampton","700979","Af Blakemore/Blakemore Foodservice","WCC000296","462.39","Provisions (Resale)","130183551","06/09/2017","Catering","Meals on Wheels","R4102"
"Wolverhampton City Council","http://opendatacommunities.org/id/metropolitan-district-council/wolverhampton","700979","Af Blakemore/Blakemore Foodservice","WCC000296","18.50","Provisions (Resale)","130183551","06/09/2017","Catering","Meals on Wheels","R4102"
"Wolverhampton City Council","http://opendatacommunities.org/id/metropolitan-district-council/wolverhampton","700979","Af Blakemore/Blakemore Foodservice","5580765","170.02","Provisions (Resale)","130184052","06/09/2017","Older People Provider Services","Bradley Lodge Resource Centre","R4102"
"Wolverhampton City Council","http://opendatacommunities.org/id/metropolitan-district-council/wolverhampton","700979","Af Blakemore/Blakemore Foodservice","5562155","48.02","Provisions (Resale)","130184040","06/09/2017","Older People Provider Services","Bradley Lodge Resource Centre","R4102"
"Wolverhampton City Council","http://opendatacommunities.org/id/metropolitan-district-council/wolverhampton","700979","Af Blakemore/Blakemore Foodservice","5525238","353.92","Provisions (Resale)","130186848","06/09/2017","Older People Provider Services","Bradley Lodge Resource Centre","R4102"
"Wolverhampton City Council","http://opendatacommunities.org/id/metropolitan-district-council/wolverhampton","700979","Af Blakemore/Blakemore Foodservice","5535216","89.64","Provisions (Resale)","130186840","06/09/2017","Older People Provider Services","Bradley Lodge Resource Centre","R4102"
"Wolverhampton City Council","http://opendatacommunities.org/id/metropolitan-district-council/wolverhampton","700979","Af Blakemore/Blakemore Foodservice","WCC000299","25,596.30","Provisions (Resale)","130186835","06/09/2017","Catering","Education Catering - General Overheads","R4102"
"Wolverhampton City Council","http://opendatacommunities.org/id/metropolitan-district-council/wolverhampton","700979","Af Blakemore/Blakemore Foodservice","WCC000299","-25,596.30","Provisions (Resale)","130186835","06/09/2017","Catering","Education Catering - General Overheads","R4102"
"Wolverhampton City Council","http://opendatacommunities.org/id/metropolitan-district-council/wolverhampton","700979","Af Blakemore/Blakemore Foodservice","5486821","20.79","Provisions (Resale)","130186855","06/09/2017","Older People Provider Services","Bradley Lodge Resource Centre","R4102"
"Wolverhampton City Council","http://opendatacommunities.org/id/metropolitan-district-council/wolverhampton","700979","Af Blakemore/Blakemore Foodservice","WCC000299","20,843.83","Provisions (Resale)","130186835","06/09/2017","Catering","Education Catering - General Overheads","R4102"
"Wolverhampton City Council","http://opendatacommunities.org/id/metropolitan-district-council/wolverhampton","700979","Af Blakemore/Blakemore Foodservice","WCC000299","4,752.47","Provisions (Resale)","130186835","06/09/2017","Catering","Education Catering - General Overheads","R4102"
"Wolverhampton City Council","http://opendatacommunities.org/id/metropolitan-district-council/wolverhampton","700979","Af Blakemore/Blakemore Foodservice","5576020","147.31","Provisions (Resale)","130186850","06/09/2017","Older People Provider Services","Bradley Lodge Resource Centre","R4102"
"Wolverhampton City Council","http://opendatacommunities.org/id/metropolitan-district-council/wolverhampton","700979","Af Blakemore/Blakemore Foodservice","5576020","59.66","Provisions (Resale)","130186850","06/09/2017","Older People Provider Services","Bradley Lodge Resource Centre","R4102"
"Wolverhampton City Council","http://opendatacommunities.org/id/metropolitan-district-council/wolverhampton","700979","Af Blakemore/Blakemore Foodservice","5593987","105.56","Provisions (Not for resale)","130187431","15/09/2017","Learning Disability Provider","Duke Street Bungalows","R4101"
"Wolverhampton City Council","http://opendatacommunities.org/id/metropolitan-district-council/wolverhampton","700979","Af Blakemore/Blakemore Foodservice","5593987","-105.56","Provisions (Not for resale)","130187431","15/09/2017","Learning Disability Provider","Duke Street Bungalows","R4101"
"Wolverhampton City Council","http://opendatacommunities.org/id/metropolitan-district-council/wolverhampton","700979","Af Blakemore/Blakemore Foodservice","5593987","105.56","Provisions (Not for resale)","130187431","15/09/2017","Learning Disability Provider","Duke Street Bungalows","R4101"
"Wolverhampton City Council","http://opendatacommunities.org/id/metropolitan-district-council/wolverhampton","700979","Af Blakemore/Blakemore Foodservice","5515630","183.71","Provisions (Resale)","130184277","27/09/2017","Visitor Economy","Art Gallery Tea Room","R4102"
"Wolverhampton City Council","http://opendatacommunities.org/id/metropolitan-district-council/wolverhampton","700979","Af Blakemore/Blakemore Foodservice","5515630","-183.71","Provisions (Resale)","130184277","27/09/2017","Visitor Economy","Art Gallery Tea Room","R4102"
"Wolverhampton City Council","http://opendatacommunities.org/id/metropolitan-district-council/wolverhampton","700979","Af Blakemore/Blakemore Foodservice","5515630","89.61","Provisions (Resale)","130184277","27/09/2017","Visitor Economy","Art Gallery Tea Room","R4102"
"Wolverhampton City Council","http://opendatacommunities.org/id/metropolitan-district-council/wolverhampton","700979","Af Blakemore/Blakemore Foodservice","5515630","94.10","Provisions (Resale)","130184277","27/09/2017","Visitor Economy","Art Gallery Tea Room","R4102"
"Wolverhampton City Council","http://opendatacommunities.org/id/metropolitan-district-council/wolverhampton","700979","Af Blakemore/Blakemore Foodservice","5533395","100.15","Provisions (Resale)","130184286","27/09/2017","Visitor Economy","Art Gallery Tea Room","R4102"
"Wolverhampton City Council","http://opendatacommunities.org/id/metropolitan-district-council/wolverhampton","700979","Af Blakemore/Blakemore Foodservice","5533395","-100.15","Provisions (Resale)","130184286","27/09/2017","Visitor Economy","Art Gallery Tea Room","R4102"
"Wolverhampton City Council","http://opendatacommunities.org/id/metropolitan-district-council/wolverhampton","700979","Af Blakemore/Blakemore Foodservice","5533395","79.16","Provisions (Resale)","130184286","27/09/2017","Visitor Economy","Art Gallery Tea Room","R4102"
"Wolverhampton City Council","http://opendatacommunities.org/id/metropolitan-district-council/wolverhampton","700979","Af Blakemore/Blakemore Foodservice","5533395","20.99","Provisions (Resale)","130184286","27/09/2017","Visitor Economy","Art Gallery Tea Room","R4102"
"Wolverhampton City Council","http://opendatacommunities.org/id/metropolitan-district-council/wolverhampton","700979","Af Blakemore/Blakemore Foodservice","5561511","344.38","Provisions (Resale)","130184038","13/09/2017","Visitor Economy","Bantock - Tea Rooms","R4102"
"Wolverhampton City Council","http://opendatacommunities.org/id/metropolitan-district-council/wolverhampton","700979","Af Blakemore/Blakemore Foodservice","5561511","-344.38","Provisions (Resale)","130184038","13/09/2017","Visitor Economy","Bantock - Tea Rooms","R4102"
"Wolverhampton City Council","http://opendatacommunities.org/id/metropolitan-district-council/wolverhampton","700979","Af Blakemore/Blakemore Foodservice","5561511","220.15","Provisions (Resale)","130184038","13/09/2017","Visitor Economy","Bantock - Tea Rooms","R4102"
"Wolverhampton City Council","http://opendatacommunities.org/id/metropolitan-district-council/wolverhampton","700979","Af Blakemore/Blakemore Foodservice","5561511","124.23","Provisions (Resale)","130184038","13/09/2017","Visitor Economy","Bantock - Tea Rooms","R4102"
"Wolverhampton City Council","http://opendatacommunities.org/id/metropolitan-district-council/wolverhampton","700979","Af Blakemore/Blakemore Foodservice","5570551","16.76","Provisions (Not for resale)","130182920","20/09/2017","Older People Provider Services","Blakenhall Resource Centre","R4101"
"Wolverhampton City Council","http://opendatacommunities.org/id/metropolitan-district-council/wolverhampton","700979","Af Blakemore/Blakemore Foodservice","5570551","-16.76","Provisions (Not for resale)","130182920","20/09/2017","Older People Provider Services","Blakenhall Resource Centre","R4101"
"Wolverhampton City Council","http://opendatacommunities.org/id/metropolitan-district-council/wolverhampton","700979","Af Blakemore/Blakemore Foodservice","5570551","16.76","Provisions (Not for resale)","130182920","20/09/2017","Older People Provider Services","Blakenhall Resource Centre","R4101"
"Wolverhampton City Council","http://opendatacommunities.org/id/metropolitan-district-council/wolverhampton","700979","Af Blakemore/Blakemore Foodservice","5549727","229.10","Provisions (Resale)","130184032","06/09/2017","Visitor Economy","Bantock - Tea Rooms","R4102"
"Wolverhampton City Council","http://opendatacommunities.org/id/metropolitan-district-council/wolverhampton","700979","Af Blakemore/Blakemore Foodservice","5580527","452.25","Provisions (Resale)","130184051","06/09/2017","Visitor Economy","Bantock - Tea Rooms","R4102"
"Wolverhampton City Council","http://opendatacommunities.org/id/metropolitan-district-council/wolverhampton","700979","Af Blakemore/Blakemore Foodservice","5567197","345.20","Provisions (Resale)","130184041","06/09/2017","Visitor Economy","Bantock - Tea Rooms","R4102"
"Wolverhampton City Council","http://opendatacommunities.org/id/metropolitan-district-council/wolverhampton","700979","Af Blakemore/Blakemore Foodservice","5572081","16.30","Provisions (Resale)","130183794","06/09/2017","Strategic Organisation Development","Blakenhall Community & Healthy Living Centre","R4102"
"Wolverhampton City Council","http://opendatacommunities.org/id/metropolitan-district-council/wolverhampton","700979","Af Blakemore/Blakemore Foodservice","5562153","30.69","Provisions (Resale)","130184039","06/09/2017","Older People Provider Services","Bradley Lodge Resource Centre","R4102"
"Wolverhampton City Council","http://opendatacommunities.org/id/metropolitan-district-council/wolverhampton","700979","Af Blakemore/Blakemore Foodservice","5576017","28.85","Provisions (Resale)","130184049","06/09/2017","Older People Provider Services","Bradley Lodge Resource Centre","R4102"
"Wolverhampton City Council","http://opendatacommunities.org/id/metropolitan-district-council/wolverhampton","700979","Af Blakemore/Blakemore Foodservice","5530356","86.68","Provisions (Resale)","130186849","06/09/2017","Older People Provider Services","Bradley Lodge Resource Centre","R4102"
"Wolverhampton City Council","http://opendatacommunities.org/id/metropolitan-district-council/wolverhampton","700979","Af Blakemore/Blakemore Foodservice","5570195","139.55","Provisions (Not for resale)","130183793","06/09/2017","Learning Disability Provider","Duke Street Bungalows","R4101"
"Wolverhampton City Council","http://opendatacommunities.org/id/metropolitan-district-council/wolverhampton","700979","Af Blakemore/Blakemore Foodservice","5570195","-139.55","Provisions (Not for resale)","130183793","06/09/2017","Learning Disability Provider","Duke Street Bungalows","R4101"
"Wolverhampton City Council","http://opendatacommunities.org/id/metropolitan-district-council/wolverhampton","700979","Af Blakemore/Blakemore Foodservice","5570195","139.55","Provisions (Not for resale)","130183793","06/09/2017","Learning Disability Provider","Duke Street Bungalows","R4101"
"Wolverhampton City Council","http://opendatacommunities.org/id/metropolitan-district-council/wolverhampton","700979","Af Blakemore/Blakemore Foodservice","5581703","113.80","Provisions (Not for resale)","130183797","06/09/2017","Learning Disability Provider","Duke Street Bungalows","R4101"
"Wolverhampton City Council","http://opendatacommunities.org/id/metropolitan-district-council/wolverhampton","700979","Af Blakemore/Blakemore Foodservice","5581703","-113.80","Provisions (Not for resale)","130183797","06/09/2017","Learning Disability Provider","Duke Street Bungalows","R4101"
"Wolverhampton City Council","http://opendatacommunities.org/id/metropolitan-district-council/wolverhampton","700979","Af Blakemore/Blakemore Foodservice","5581703","113.80","Provisions (Not for resale)","130183797","06/09/2017","Learning Disability Provider","Duke Street Bungalows","R4101"
"Wolverhampton City Council","http://opendatacommunities.org/id/metropolitan-district-council/wolverhampton","700979","Af Blakemore/Blakemore Foodservice","WCA000044","1,152.08","Provisions (Not for resale)","130183547","06/09/2017","Leisure Services","WV Active Catering","R4101"
"Wolverhampton City Council","http://opendatacommunities.org/id/metropolitan-district-council/wolverhampton","700979","Af Blakemore/Blakemore Foodservice","WCA000044","356.48","Provisions (Not for resale)","130183547","06/09/2017","Leisure Services","WV Active Catering","R4101"
"Wolverhampton City Council","http://opendatacommunities.org/id/metropolitan-district-council/wolverhampton","700989","S P Nugent","00016","560.00","TPP - Maintenance Contractor - General","190370654","08/09/2017","Transportation","Cycling Schemes - Bikeability","R5720"
"Wolverhampton City Council","http://opendatacommunities.org/id/metropolitan-district-council/wolverhampton","701045","After Adoption","6566","117.52","Services - Professional Fees","130187433","13/09/2017","Looked After Children","Adoption and Residence Team & Allowances","R4400"
"Wolverhampton City Council","http://opendatacommunities.org/id/metropolitan-district-council/wolverhampton","701111","Agilisys Limited","1225742","6,375.00","Computing - Purchase of Software","130187187","08/09/2017","Revenues & Benefits","Debt Management","R4531"
"Wolverhampton City Council","http://opendatacommunities.org/id/metropolitan-district-council/wolverhampton","701145","T Bailey","000030","240.00","TPP - Maintenance Contractor - General","190370655","08/09/2017","Transportation","Cycling Schemes - Bikeability","R5720"
"Wolverhampton City Council","http://opendatacommunities.org/id/metropolitan-district-council/wolverhampton","701155","Aidapt Bathrooms Limited","306885","49.50","Equipment - Purchase","130187700","13/09/2017","Independent Living Service","Independent Living Service","R4000"
"Wolverhampton City Council","http://opendatacommunities.org/id/metropolitan-district-council/wolverhampton","701210","Air Methods Limited","SI003206","148.68","R&M - Departmental planned (external)","130188284","22/09/2017","Maintenance Programme","Civic Centre Repairs & Maintenance","R2001"
"Wolverhampton City Council","http://opendatacommunities.org/id/metropolitan-district-council/wolverhampton","701388","Albrighton Medical Practice","FOS0358","76.24","Services - Professional Fees","190370685","08/09/2017","Looked After Children","Fostering Team & Allowances","R4400"
"Wolverhampton City Council","http://opendatacommunities.org/id/metropolitan-district-council/wolverhampton","701393","Aldersley Church Early Learning Committee","TFT Autumn 2017 Inst 1","3,867.12","Grant Payments","190378735","29/09/2017","Early Years","Early Years Entitlement Funding for Disadvantaged 2 Year Olds","R4700"
"Wolverhampton City Council","http://opendatacommunities.org/id/metropolitan-district-council/wolverhampton","701393","Aldersley Church Early Learning Committee","NEF Autumn 2017 INST 1","7,497.00","TPP - Private Nursery Education Funding","190378725","29/09/2017","Early Years","Early Years Universal Entitlement for 3 and 4 Year Olds","R5035"
"Wolverhampton City Council","http://opendatacommunities.org/id/metropolitan-district-council/wolverhampton","701397","Aldridge Trimming","28496","85.00","Equipment - Purchase","190375452","22/09/2017","Fleet Services","Fleet Management","R4000"
"Wolverhampton City Council","http://opendatacommunities.org/id/metropolitan-district-council/wolverhampton","701397","Aldridge Trimming","28497","84.16","Equipment - Purchase","190375453","22/09/2017","Fleet Services","Fleet Management","R4000"
"Wolverhampton City Council","http://opendatacommunities.org/id/metropolitan-district-council/wolverhampton","701397","Aldridge Trimming","28497","168.34","Equipment - Purchase","190375453","22/09/2017","Fleet Services","Fleet Management","R4000"
"Wolverhampton City Council","http://opendatacommunities.org/id/metropolitan-district-council/wolverhampton","701397","Aldridge Trimming","28497","168.34","Equipment - Purchase","190375453","22/09/2017","Fleet Services","Fleet Management","R4000"
"Wolverhampton City Council","http://opendatacommunities.org/id/metropolitan-district-council/wolverhampton","701397","Aldridge Trimming","28497","84.16","Equipment - Purchase","190375453","22/09/2017","Fleet Services","Fleet Management","R4000"
"Wolverhampton City Council","http://opendatacommunities.org/id/metropolitan-district-council/wolverhampton","701401","Alexander Dennis Limited","1177204","27.82","Equipment - Purchase","190369816","06/09/2017","Fleet Services","Fleet Management","R4000"
"Wolverhampton City Council","http://opendatacommunities.org/id/metropolitan-district-council/wolverhampton","701405","Alfred Bagnall & Sons (Mids) Limited","16280","4,334.00","R&M - Departmental planned (internal)","130178808","06/09/2017","Facilities Management","Magistrates","R2000"
"Wolverhampton City Council","http://opendatacommunities.org/id/metropolitan-district-council/wolverhampton","701408","Alice Whyley Creative Wonderland","ES37 eServices Support Team","1,750.00","Services - Consultants","130186548","13/09/2017","School Planning & Resources","Technical Support","R4404"
"Wolverhampton City Council","http://opendatacommunities.org/id/metropolitan-district-council/wolverhampton","701408","Alice Whyley Creative Wonderland","HSAUG17 : HeadStart Wolverhampton","1,200.00","Services - Professional Fees","130186952","13/09/2017","Headstart","Headstart Phase 3","R4400"
"Wolverhampton City Council","http://opendatacommunities.org/id/metropolitan-district-council/wolverhampton","701417","All Saints Action Network Limited","NEF Autumn 2017 INST 1","14,714.10","TPP - Private Nursery Education Funding","190378725","29/09/2017","Early Years","Early Years Universal Entitlement for 3 and 4 Year Olds","R5035"
"Wolverhampton City Council","http://opendatacommunities.org/id/metropolitan-district-council/wolverhampton","701417","All Saints Action Network Limited","TFT Autumn 2017 Inst 1","14,525.28","Grant Payments","190378735","29/09/2017","Early Years","Early Years Entitlement Funding for Disadvantaged 2 Year Olds","R4700"
"Wolverhampton City Council","http://opendatacommunities.org/id/metropolitan-district-council/wolverhampton","701436","Allsigns International Limited","451499","1,393.40","Equipment - Purchase","130187435","20/09/2017","Facilities Management","Bilston Town Hall","R4000"
"Wolverhampton City Council","http://opendatacommunities.org/id/metropolitan-district-council/wolverhampton","701436","Allsigns International Limited","452080","71.64","Equipment - Purchase","130189078","22/09/2017","Catering","Education Catering - General Overheads","R4000"
"Wolverhampton City Council","http://opendatacommunities.org/id/metropolitan-district-council/wolverhampton","701436","Allsigns International Limited","452378","266.39","Equipment - Purchase","130189508","27/09/2017","Facilities Management","Caretakers Community Centre","R4000"
"Wolverhampton City Council","http://opendatacommunities.org/id/metropolitan-district-council/wolverhampton","701439","Allstar Business Solutions Limited","E2008718706","78.33","Petrol","190374313","20/09/2017","Fleet Services","Fleet Management","R3000"
"Wolverhampton City Council","http://opendatacommunities.org/id/metropolitan-district-council/wolverhampton","701439","Allstar Business Solutions Limited","E2008714118","1,363.68","Petrol","190374312","20/09/2017","Fleet Services","Fleet Management","R3000"
"Wolverhampton City Council","http://opendatacommunities.org/id/metropolitan-district-council/wolverhampton","701439","Allstar Business Solutions Limited","E2008772293","39.21","Petrol","190378789","29/09/2017","Fleet Services","Fleet Management","R3000"
"Wolverhampton City Council","http://opendatacommunities.org/id/metropolitan-district-council/wolverhampton","701439","Allstar Business Solutions Limited","E2008772293","1,524.76","Petrol","190378789","29/09/2017","Fleet Services","Fleet Management","R3000"
"Wolverhampton City Council","http://opendatacommunities.org/id/metropolitan-district-council/wolverhampton","701439","Allstar Business Solutions Limited","E2008718715","13.42","Petrol","190374314","20/09/2017","Fleet Services","Fleet Management","R3000"
"Wolverhampton City Council","http://opendatacommunities.org/id/metropolitan-district-council/wolverhampton","701446","Alphabiolabs","12334","290.00","Services - Professional Fees","190370674","08/09/2017","Child Protection","Head of Service - CINCP","R4400"
"Wolverhampton City Council","http://opendatacommunities.org/id/metropolitan-district-council/wolverhampton","701446","Alphabiolabs","16137","132.50","Services - Professional Fees","190370676","08/09/2017","Child Protection","Head of Service - CINCP","R4400"
"Wolverhampton City Council","http://opendatacommunities.org/id/metropolitan-district-council/wolverhampton","701446","Alphabiolabs","13533","137.50","Services - Professional Fees","190370673","08/09/2017","Child Protection","Head of Service - CINCP","R4400"
"Wolverhampton City Council","http://opendatacommunities.org/id/metropolitan-district-council/wolverhampton","701446","Alphabiolabs","16189","90.00","Services - Professional Fees","190370677","08/09/2017","Child Protection","Head of Service - CINCP","R4400"
"Wolverhampton City Council","http://opendatacommunities.org/id/metropolitan-district-council/wolverhampton","701502","Andrews Creative Services","AC2017 - 08","100.00","Services - Professional Fees","130187436","27/09/2017","Democratic Services","Mayoral Expenses","R4400"
"Wolverhampton City Council","http://opendatacommunities.org/id/metropolitan-district-council/wolverhampton","701509","Angel Springs Limited (Waterlogic)","3878290","10.30","Provisions (Not for resale)","130188766","27/09/2017","Facilities Management","Hickman Avenue Depot","R4101"
"Wolverhampton City Council","http://opendatacommunities.org/id/metropolitan-district-council/wolverhampton","701509","Angel Springs Limited (Waterlogic)","3878250","59.48","Provisions (Not for resale)","130188045","27/09/2017","Parking Services","Parking Enforcement","R4101"
"Wolverhampton City Council","http://opendatacommunities.org/id/metropolitan-district-council/wolverhampton","701509","Angel Springs Limited (Waterlogic)","3878292","15.64","Provisions (Not for resale)","130187710","27/09/2017","Facilities Management","Culwell Street Depot","R4101"
"Wolverhampton City Council","http://opendatacommunities.org/id/metropolitan-district-council/wolverhampton","701509","Angel Springs Limited (Waterlogic)","3878253","12.96","Provisions (Not for resale)","130187706","27/09/2017","Housing Revenue Account - Communities","Carelink","R4101"
"Wolverhampton City Council","http://opendatacommunities.org/id/metropolitan-district-council/wolverhampton","701509","Angel Springs Limited (Waterlogic)","3240377","19.44","Provisions (Not for resale)","130186478","27/09/2017","Headstart","Headstart Phase 3","R4101"
"Wolverhampton City Council","http://opendatacommunities.org/id/metropolitan-district-council/wolverhampton","701509","Angel Springs Limited (Waterlogic)","3878252","15.00","Provisions (Not for resale)","130188047","27/09/2017","Early Intervention","EIP Locality 7 � Low Hill","R4101"
"Wolverhampton City Council","http://opendatacommunities.org/id/metropolitan-district-council/wolverhampton","701509","Angel Springs Limited (Waterlogic)","3770234","10.30","Provisions (Not for resale)","130187117","29/09/2017","Environmental Maintenance","Ground Maintenance West","R4101"
"Wolverhampton City Council","http://opendatacommunities.org/id/metropolitan-district-council/wolverhampton","701509","Angel Springs Limited (Waterlogic)","3659079","12.96","Provisions (Not for resale)","130187120","13/09/2017","Environmental Maintenance","Ground Maintenance West","R4101"
"Wolverhampton City Council","http://opendatacommunities.org/id/metropolitan-district-council/wolverhampton","701509","Angel Springs Limited (Waterlogic)","3770237","6.48","Provisions (Not for resale)","130187124","13/09/2017","Environmental Maintenance","Arbor Scheme","R4101"
"Wolverhampton City Council","http://opendatacommunities.org/id/metropolitan-district-council/wolverhampton","701509","Angel Springs Limited (Waterlogic)","3878256","25.92","Provisions (Not for resale)","130187708","27/09/2017","Fleet Services","Passenger Transport - General","R4101"
"Wolverhampton City Council","http://opendatacommunities.org/id/metropolitan-district-council/wolverhampton","701509","Angel Springs Limited (Waterlogic)","3878286","123.75","Provisions (Not for resale)","130188052","27/09/2017","Maintenance Programme","Civic Centre Repairs & Maintenance","R4101"
"Wolverhampton City Council","http://opendatacommunities.org/id/metropolitan-district-council/wolverhampton","701509","Angel Springs Limited (Waterlogic)","3878294","15.64","Provisions (Not for resale)","130188924","27/09/2017","Early Intervention","EIP Locality 8 � Children�s Village","R4101"
"Wolverhampton City Council","http://opendatacommunities.org/id/metropolitan-district-council/wolverhampton","701509","Angel Springs Limited (Waterlogic)","3878296","235.22","Provisions (Not for resale)","130187711","27/09/2017","Fleet Services","Fleet Management","R4101"
"Wolverhampton City Council","http://opendatacommunities.org/id/metropolitan-district-council/wolverhampton","701509","Angel Springs Limited (Waterlogic)","3872213","15.64","Provisions (Not for resale)","130187701","27/09/2017","Early Intervention","EIP Locality 2 � Bilston/Rocket Pool","R4101"
"Wolverhampton City Council","http://opendatacommunities.org/id/metropolitan-district-council/wolverhampton","701509","Angel Springs Limited (Waterlogic)","3704369","20.29","Catering","130189640","27/09/2017","Early Intervention","EIP Locality 1 - Eastfields","R4100"
"Wolverhampton City Council","http://opendatacommunities.org/id/metropolitan-district-council/wolverhampton","701509","Angel Springs Limited (Waterlogic)","3824999","32.40","Provisions (Not for resale)","130187114","08/09/2017","Fleet Services","Passenger Transport - General","R4101"
"Wolverhampton City Council","http://opendatacommunities.org/id/metropolitan-district-council/wolverhampton","701509","Angel Springs Limited (Waterlogic)","3609856","6.48","Provisions (Not for resale)","130187121","29/09/2017","Environmental Maintenance","Arbor Scheme","R4101"
"Wolverhampton City Council","http://opendatacommunities.org/id/metropolitan-district-council/wolverhampton","701509","Angel Springs Limited (Waterlogic)","3404829","56.01","Cleaning Supplies and Materials","130189636","29/09/2017","Strategic Organisation Development","Global Budgets","R2705"
"Wolverhampton City Council","http://opendatacommunities.org/id/metropolitan-district-council/wolverhampton","701509","Angel Springs Limited (Waterlogic)","3770238","10.30","Provisions (Not for resale)","130187123","13/09/2017","Environmental Maintenance","Arbor Scheme","R4101"
"Wolverhampton City Council","http://opendatacommunities.org/id/metropolitan-district-council/wolverhampton","701509","Angel Springs Limited (Waterlogic)","3714164","6.48","Provisions (Not for resale)","130187118","13/09/2017","Environmental Maintenance","Ground Maintenance West","R4101"
"Wolverhampton City Council","http://opendatacommunities.org/id/metropolitan-district-council/wolverhampton","701509","Angel Springs Limited (Waterlogic)","3771003","123.75","Provisions (Not for resale)","130186477","15/09/2017","Maintenance Programme","Civic Centre Repairs & Maintenance","R4101"
"Wolverhampton City Council","http://opendatacommunities.org/id/metropolitan-district-council/wolverhampton","701509","Angel Springs Limited (Waterlogic)","3878257","15.64","Provisions (Not for resale)","130188049","27/09/2017","Facilities Management","Victoria Square, Block 11","R4101"
"Wolverhampton City Council","http://opendatacommunities.org/id/metropolitan-district-council/wolverhampton","701509","Angel Springs Limited (Waterlogic)","3878255","93.32","Provisions (Not for resale)","130187707","27/09/2017","Governance Services","Scrutiny","R4101"
"Wolverhampton City Council","http://opendatacommunities.org/id/metropolitan-district-council/wolverhampton","701509","Angel Springs Limited (Waterlogic)","3878258","16.20","Provisions (Not for resale)","130189342","27/09/2017","School Planning & Resources","Education Data Services","R4101"
"Wolverhampton City Council","http://opendatacommunities.org/id/metropolitan-district-council/wolverhampton","701509","Angel Springs Limited (Waterlogic)","3878249","22.68","Provisions (Not for resale)","130188044","27/09/2017","Parking Services","Car Parks Operational Staff","R4101"
"Wolverhampton City Council","http://opendatacommunities.org/id/metropolitan-district-council/wolverhampton","701509","Angel Springs Limited (Waterlogic)","3877543","16.78","Provisions (Not for resale)","130187702","27/09/2017","Environmental Maintenance","Ground Maintenance West","R4101"
"Wolverhampton City Council","http://opendatacommunities.org/id/metropolitan-district-council/wolverhampton","701509","Angel Springs Limited (Waterlogic)","3824285","12.96","Provisions (Not for resale)","130187122","15/09/2017","Environmental Maintenance","Ground Maintenance East","R4101"
"Wolverhampton City Council","http://opendatacommunities.org/id/metropolitan-district-council/wolverhampton","701509","Angel Springs Limited (Waterlogic)","3559825","20.00","Equipment - Hire","130187437","13/09/2017","Leisure Services","Aldersley Leisure Village","R4001"
"Wolverhampton City Council","http://opendatacommunities.org/id/metropolitan-district-council/wolverhampton","701509","Angel Springs Limited (Waterlogic)","3659081","10.30","Provisions (Not for resale)","130187119","13/09/2017","Environmental Maintenance","Arbor Scheme","R4101"
"Wolverhampton City Council","http://opendatacommunities.org/id/metropolitan-district-council/wolverhampton","701509","Angel Springs Limited (Waterlogic)","3824286","6.48","Provisions (Not for resale)","130187115","13/09/2017","Environmental Maintenance","Arbor Scheme","R4101"
"Wolverhampton City Council","http://opendatacommunities.org/id/metropolitan-district-council/wolverhampton","701509","Angel Springs Limited (Waterlogic)","3825028","123.75","Provisions (Not for resale)","130184842","01/09/2017","Maintenance Programme","Civic Centre Repairs & Maintenance","R4101"
"Wolverhampton City Council","http://opendatacommunities.org/id/metropolitan-district-council/wolverhampton","701509","Angel Springs Limited (Waterlogic)","2995647","33.56","Provisions (Not for resale)","130187012","20/09/2017","Headstart","Headstart Phase 3","R4101"
"Wolverhampton City Council","http://opendatacommunities.org/id/metropolitan-district-council/wolverhampton","701509","Angel Springs Limited (Waterlogic)","3825037","64.80","Provisions (Not for resale)","130188765","20/09/2017","Fleet Services","Fleet Management","R4101"
"Wolverhampton City Council","http://opendatacommunities.org/id/metropolitan-district-council/wolverhampton","701509","Angel Springs Limited (Waterlogic)","3878251","15.64","Provisions (Not for resale)","130188046","27/09/2017","Early Intervention","EIP Locality 2 � Bilston/Rocket Pool","R4101"
"Wolverhampton City Council","http://opendatacommunities.org/id/metropolitan-district-council/wolverhampton","701509","Angel Springs Limited (Waterlogic)","3877544","13.54","Provisions (Not for resale)","130187703","27/09/2017","Environmental Maintenance","Ground Maintenance East","R4101"
"Wolverhampton City Council","http://opendatacommunities.org/id/metropolitan-district-council/wolverhampton","701509","Angel Springs Limited (Waterlogic)","3878254","9.72","Provisions (Not for resale)","130188048","27/09/2017","Customer Services","City Direct","R4101"
"Wolverhampton City Council","http://opendatacommunities.org/id/metropolitan-district-council/wolverhampton","701509","Angel Springs Limited (Waterlogic)","3878259","19.44","Provisions (Not for resale)","130188050","27/09/2017","Headstart","Headstart Phase 3","R4101"
"Wolverhampton City Council","http://opendatacommunities.org/id/metropolitan-district-council/wolverhampton","701509","Angel Springs Limited (Waterlogic)","3878291","93.92","Provisions (Not for resale)","130187709","27/09/2017","Facilities Management","Culwell Street Depot","R4101"
"Wolverhampton City Council","http://opendatacommunities.org/id/metropolitan-district-council/wolverhampton","701509","Angel Springs Limited (Waterlogic)","3878288","69.20","Provisions (Not for resale)","130188053","27/09/2017","Highways Maintenance","Patching","R4101"
"Wolverhampton City Council","http://opendatacommunities.org/id/metropolitan-district-council/wolverhampton","701509","Angel Springs Limited (Waterlogic)","3770236","12.96","Provisions (Not for resale)","130187116","15/09/2017","Environmental Maintenance","Arbor Scheme","R4101"
"Wolverhampton City Council","http://opendatacommunities.org/id/metropolitan-district-council/wolverhampton","701509","Angel Springs Limited (Waterlogic)","3659082","6.48","Provisions (Not for resale)","130188441","18/09/2017","Environmental Maintenance","Arbor Scheme","R4101"
"Wolverhampton City Council","http://opendatacommunities.org/id/metropolitan-district-council/wolverhampton","701509","Angel Springs Limited (Waterlogic)","3714883","6.48","Catering","130187438","13/09/2017","Visitor Economy","Archives","R4100"
"Wolverhampton City Council","http://opendatacommunities.org/id/metropolitan-district-council/wolverhampton","701509","Angel Springs Limited (Waterlogic)","3393631","47.40","Provisions (Not for resale)","130186473","13/09/2017","Headstart","Headstart Phase 3","R4101"
"Wolverhampton City Council","http://opendatacommunities.org/id/metropolitan-district-council/wolverhampton","701511","Angelbell Limited T/A Hulleys Frozen","363507","545.66","Provisions (Resale)","130186550","20/09/2017","Visitor Economy","Bantock - Tea Rooms","R4102"
"Wolverhampton City Council","http://opendatacommunities.org/id/metropolitan-district-council/wolverhampton","701511","Angelbell Limited T/A Hulleys Frozen","347720","228.35","Provisions (Resale)","130184978","06/09/2017","Visitor Economy","Bantock - Tea Rooms","R4102"
"Wolverhampton City Council","http://opendatacommunities.org/id/metropolitan-district-council/wolverhampton","701511","Angelbell Limited T/A Hulleys Frozen","351167","233.10","Provisions (Resale)","130185142","13/09/2017","Visitor Economy","Bantock - Tea Rooms","R4102"
"Wolverhampton City Council","http://opendatacommunities.org/id/metropolitan-district-council/wolverhampton","701511","Angelbell Limited T/A Hulleys Frozen","341101","136.18","Provisions (Resale)","130184091","01/09/2017","Visitor Economy","Bantock - Tea Rooms","R4102"
"Wolverhampton City Council","http://opendatacommunities.org/id/metropolitan-district-council/wolverhampton","701511","Angelbell Limited T/A Hulleys Frozen","355955","233.91","Provisions (Resale)","130185372","13/09/2017","Visitor Economy","Bantock - Tea Rooms","R4102"
"Wolverhampton City Council","http://opendatacommunities.org/id/metropolitan-district-council/wolverhampton","701511","Angelbell Limited T/A Hulleys Frozen","370991","195.10","Provisions (Resale)","130187204","27/09/2017","Visitor Economy","Bantock - Tea Rooms","R4102"
"Wolverhampton City Council","http://opendatacommunities.org/id/metropolitan-district-council/wolverhampton","701512","Anglia Dna Services Limited","1370","-111.00","Services - Professional Fees","130179535","13/09/2017","Child Protection","Head of Service - CINCP","R4400"
"Wolverhampton City Council","http://opendatacommunities.org/id/metropolitan-district-council/wolverhampton","701512","Anglia Dna Services Limited","2018","141.33","Services - Professional Fees","130187439","13/09/2017","Child Protection","Head of Service - CINCP","R4400"
"Wolverhampton City Council","http://opendatacommunities.org/id/metropolitan-district-council/wolverhampton","701512","Anglia Dna Services Limited","2217","148.00","Services - Professional Fees","130189343","27/09/2017","Child Protection","Head of Service - CINCP","R4400"
"Wolverhampton City Council","http://opendatacommunities.org/id/metropolitan-district-council/wolverhampton","701518","Animal Antics","AB2825","280.00","Education trips, Holidays, Outings & Activities","130183802","06/09/2017","Early Intervention","EIP Locality 7 � Low Hill","R4970"
"Wolverhampton City Council","http://opendatacommunities.org/id/metropolitan-district-council/wolverhampton","701525","Ann Arbor Publishers Limited","243749","72.00","Equipment - Purchase","130185143","13/09/2017","Inclusion Support","Inclusion Support","R4000"
"Wolverhampton City Council","http://opendatacommunities.org/id/metropolitan-district-council/wolverhampton","701525","Ann Arbor Publishers Limited","243749","-72.00","Equipment - Purchase","130185143","13/09/2017","Inclusion Support","Inclusion Support","R4000"
"Wolverhampton City Council","http://opendatacommunities.org/id/metropolitan-district-council/wolverhampton","701525","Ann Arbor Publishers Limited","243749","72.00","Equipment - Purchase","130185143","13/09/2017","Inclusion Support","Inclusion Support","R4000"
"Wolverhampton City Council","http://opendatacommunities.org/id/metropolitan-district-council/wolverhampton","701525","Ann Arbor Publishers Limited","243749","3.33","Equipment - Purchase","130185143","13/09/2017","Inclusion Support","Inclusion Support","R4000"
"Wolverhampton City Council","http://opendatacommunities.org/id/metropolitan-district-council/wolverhampton","701545","Apcoa Parking (UK) Limited","C119422","-50,720.66","TPP - Traffic Management","130185989","15/09/2017","Parking Services","Parking Enforcement","R5050"
"Wolverhampton City Council","http://opendatacommunities.org/id/metropolitan-district-council/wolverhampton","701545","Apcoa Parking (UK) Limited","261384","50,720.66","TPP - Traffic Management","130183403","15/09/2017","Parking Services","Parking Enforcement","R5050"
"Wolverhampton City Council","http://opendatacommunities.org/id/metropolitan-district-council/wolverhampton","701545","Apcoa Parking (UK) Limited","261699","50,720.66","TPP - Traffic Management","130185988","15/09/2017","Parking Services","Parking Enforcement","R5050"
"Wolverhampton City Council","http://opendatacommunities.org/id/metropolitan-district-council/wolverhampton","701545","Apcoa Parking (UK) Limited","262380","52,501.59","TPP - Traffic Management","130187440","27/09/2017","Parking Services","Parking Enforcement","R5050"
"Wolverhampton City Council","http://opendatacommunities.org/id/metropolitan-district-council/wolverhampton","701547","Apetito Limited","9002090011","1,177.30","Provisions (Resale)","130186953","20/09/2017","Catering","Meals on Wheels","R4102"
"Wolverhampton City Council","http://opendatacommunities.org/id/metropolitan-district-council/wolverhampton","701547","Apetito Limited","9002080173","954.46","Provisions (Resale)","130185812","13/09/2017","Catering","Meals on Wheels","R4102"
"Wolverhampton City Council","http://opendatacommunities.org/id/metropolitan-district-council/wolverhampton","701547","Apetito Limited","9002072739","1,080.66","Provisions (Resale)","130183803","06/09/2017","Catering","Meals on Wheels","R4102"
"Wolverhampton City Council","http://opendatacommunities.org/id/metropolitan-district-council/wolverhampton","701547","Apetito Limited","9002086435","1,096.29","Provisions (Resale)","130186319","20/09/2017","Catering","Meals on Wheels","R4102"
"Wolverhampton City Council","http://opendatacommunities.org/id/metropolitan-district-council/wolverhampton","701547","Apetito Limited","9002096248","1,522.46","Provisions (Resale)","130187205","27/09/2017","Catering","Meals on Wheels","R4102"
"Wolverhampton City Council","http://opendatacommunities.org/id/metropolitan-district-council/wolverhampton","701547","Apetito Limited","9002092302","955.08","Provisions (Resale)","130186722","27/09/2017","Catering","Meals on Wheels","R4102"
"Wolverhampton City Council","http://opendatacommunities.org/id/metropolitan-district-council/wolverhampton","701547","Apetito Limited","9002076258","1,200.54","Provisions (Resale)","130184571","06/09/2017","Catering","Meals on Wheels","R4102"
"Wolverhampton City Council","http://opendatacommunities.org/id/metropolitan-district-council/wolverhampton","701547","Apetito Limited","9002083939","1,230.91","Provisions (Resale)","130185990","13/09/2017","Catering","Meals on Wheels","R4102"
"Wolverhampton City Council","http://opendatacommunities.org/id/metropolitan-district-council/wolverhampton","701573","Aquila Truck Centres Limited","3033648","3.30","Equipment - Purchase","190372625","13/09/2017","Fleet Services","Fleet Management","R4000"
"Wolverhampton City Council","http://opendatacommunities.org/id/metropolitan-district-council/wolverhampton","701573","Aquila Truck Centres Limited","3033648","121.80","Equipment - Purchase","190372625","13/09/2017","Fleet Services","Fleet Management","R4000"
"Wolverhampton City Council","http://opendatacommunities.org/id/metropolitan-district-council/wolverhampton","701573","Aquila Truck Centres Limited","3033648","6.22","Equipment - Purchase","190372625","13/09/2017","Fleet Services","Fleet Management","R4000"
"Wolverhampton City Council","http://opendatacommunities.org/id/metropolitan-district-council/wolverhampton","701573","Aquila Truck Centres Limited","3033648","41.34","Equipment - Purchase","190372625","13/09/2017","Fleet Services","Fleet Management","R4000"
"Wolverhampton City Council","http://opendatacommunities.org/id/metropolitan-district-council/wolverhampton","701573","Aquila Truck Centres Limited","3033648","6.94","Equipment - Purchase","190372625","13/09/2017","Fleet Services","Fleet Management","R4000"
"Wolverhampton City Council","http://opendatacommunities.org/id/metropolitan-district-council/wolverhampton","701573","Aquila Truck Centres Limited","3033648","94.64","Equipment - Purchase","190372625","13/09/2017","Fleet Services","Fleet Management","R4000"
"Wolverhampton City Council","http://opendatacommunities.org/id/metropolitan-district-council/wolverhampton","701573","Aquila Truck Centres Limited","3033691","2.66","Equipment - Purchase","190372626","13/09/2017","Fleet Services","Fleet Management","R4000"
"Wolverhampton City Council","http://opendatacommunities.org/id/metropolitan-district-council/wolverhampton","701594","Argos Business Solutions Limited","01567330","8.07","Grant Payments","130184574","08/09/2017","Early Intervention","EIP Locality 4 - Bingley","R4700"
"Wolverhampton City Council","http://opendatacommunities.org/id/metropolitan-district-council/wolverhampton","701594","Argos Business Solutions Limited","01567330","-8.07","Grant Payments","130184574","08/09/2017","Early Intervention","EIP Locality 4 - Bingley","R4700"
"Wolverhampton City Council","http://opendatacommunities.org/id/metropolitan-district-council/wolverhampton","701594","Argos Business Solutions Limited","01567330","8.07","Grant Payments","130184574","08/09/2017","Early Intervention","EIP Locality 4 - Bingley","R4700"
"Wolverhampton City Council","http://opendatacommunities.org/id/metropolitan-district-council/wolverhampton","701594","Argos Business Solutions Limited","01565169","96.37","Equipment - Purchase","130183216","01/09/2017","Early Intervention","EIP Locality 4 - Bingley","R4000"
"Wolverhampton City Council","http://opendatacommunities.org/id/metropolitan-district-council/wolverhampton","701594","Argos Business Solutions Limited","01573336","-141.65","Grant Payments","130186988","29/09/2017","Early Intervention","EIP Locality 4 - Bingley","R4700"
"Wolverhampton City Council","http://opendatacommunities.org/id/metropolitan-district-council/wolverhampton","701594","Argos Business Solutions Limited","01573336","137.40","Grant Payments","130186988","29/09/2017","Early Intervention","EIP Locality 4 - Bingley","R4700"
"Wolverhampton City Council","http://opendatacommunities.org/id/metropolitan-district-council/wolverhampton","701594","Argos Business Solutions Limited","01573336","141.65","Grant Payments","130186988","29/09/2017","Early Intervention","EIP Locality 4 - Bingley","R4700"
"Wolverhampton City Council","http://opendatacommunities.org/id/metropolitan-district-council/wolverhampton","701594","Argos Business Solutions Limited","01540381","-83.65","Equipment - Purchase","130172753","01/09/2017","Early Intervention","EIP Locality 6 � Dovecotes","R4000"
"Wolverhampton City Council","http://opendatacommunities.org/id/metropolitan-district-council/wolverhampton","701594","Argos Business Solutions Limited","01569394","161.48","Equipment - Purchase","130185373","15/09/2017","Headstart","Headstart Phase 3","R4000"
"Wolverhampton City Council","http://opendatacommunities.org/id/metropolitan-district-council/wolverhampton","701594","Argos Business Solutions Limited","01569394","-161.48","Equipment - Purchase","130185373","15/09/2017","Headstart","Headstart Phase 3","R4000"
"Wolverhampton City Council","http://opendatacommunities.org/id/metropolitan-district-council/wolverhampton","701594","Argos Business Solutions Limited","01569394","133.81","Equipment - Purchase","130185373","15/09/2017","Headstart","Headstart Phase 3","R4000"
"Wolverhampton City Council","http://opendatacommunities.org/id/metropolitan-district-council/wolverhampton","701594","Argos Business Solutions Limited","01553799","48.49","Equipment - Purchase","130178123","01/09/2017","Early Intervention","EIP Locality 4 - Bingley","R4000"
"Wolverhampton City Council","http://opendatacommunities.org/id/metropolitan-district-council/wolverhampton","701594","Argos Business Solutions Limited","01540383","-122.18","Equipment - Purchase","130172755","01/09/2017","Early Intervention","EIP Locality 6 � Dovecotes","R4000"
"Wolverhampton City Council","http://opendatacommunities.org/id/metropolitan-district-council/wolverhampton","701594","Argos Business Solutions Limited","01540382","-484.99","Equipment - Purchase","130172754","01/09/2017","Early Intervention","EIP Locality 6 � Dovecotes","R4000"
"Wolverhampton City Council","http://opendatacommunities.org/id/metropolitan-district-council/wolverhampton","701594","Argos Business Solutions Limited","01567329","362.21","Services - Consultants","130184573","15/09/2017","Learning Disability Provider","Learning Disabilities Management","R4404"
"Wolverhampton City Council","http://opendatacommunities.org/id/metropolitan-district-council/wolverhampton","701594","Argos Business Solutions Limited","01567328","104.45","Grant Payments","130184572","08/09/2017","Early Intervention","EIP Locality 5 � Whitmore Reans","R4700"
"Wolverhampton City Council","http://opendatacommunities.org/id/metropolitan-district-council/wolverhampton","701594","Argos Business Solutions Limited","01567328","-104.45","Grant Payments","130184572","08/09/2017","Early Intervention","EIP Locality 5 � Whitmore Reans","R4700"
"Wolverhampton City Council","http://opendatacommunities.org/id/metropolitan-district-council/wolverhampton","701594","Argos Business Solutions Limited","01567328","104.45","Grant Payments","130184572","08/09/2017","Early Intervention","EIP Locality 5 � Whitmore Reans","R4700"
"Wolverhampton City Council","http://opendatacommunities.org/id/metropolitan-district-council/wolverhampton","701594","Argos Business Solutions Limited","01549017","16.62","Grant Payments","130176098","01/09/2017","Early Intervention","EIP Locality 6 � Dovecotes","R4700"
"Wolverhampton City Council","http://opendatacommunities.org/id/metropolitan-district-council/wolverhampton","701594","Argos Business Solutions Limited","01556238","245.77","Grant Payments","130179328","01/09/2017","Early Intervention","EIP Locality 4 - Bingley","R4700"
"Wolverhampton City Council","http://opendatacommunities.org/id/metropolitan-district-council/wolverhampton","701594","Argos Business Solutions Limited","01556238","-245.77","Grant Payments","130179328","01/09/2017","Early Intervention","EIP Locality 4 - Bingley","R4700"
"Wolverhampton City Council","http://opendatacommunities.org/id/metropolitan-district-council/wolverhampton","701594","Argos Business Solutions Limited","01556238","245.77","Grant Payments","130179328","01/09/2017","Early Intervention","EIP Locality 4 - Bingley","R4700"
"Wolverhampton City Council","http://opendatacommunities.org/id/metropolitan-district-council/wolverhampton","701594","Argos Business Solutions Limited","01561067","206.89","Services - Consultants","130181331","15/09/2017","Learning Disability Provider","Learning Disabilities Management","R4404"
"Wolverhampton City Council","http://opendatacommunities.org/id/metropolitan-district-council/wolverhampton","701595","Argus Fire Protection Co.Limited","38748","360.00","R&M - Departmental planned (internal)","130186150","15/09/2017","Facilities Management","i10 Facilities Management","R2000"
"Wolverhampton City Council","http://opendatacommunities.org/id/metropolitan-district-council/wolverhampton","701595","Argus Fire Protection Co.Limited","38888","74.00","R&M - Departmental planned (internal)","130186723","27/09/2017","Maintenance Programme","Centralised R&M","R2000"
"Wolverhampton City Council","http://opendatacommunities.org/id/metropolitan-district-council/wolverhampton","701595","Argus Fire Protection Co.Limited","38754","360.00","R&M - Departmental planned (internal)","130186151","01/09/2017","Maintenance Programme","Centralised R&M","R2000"
"Wolverhampton City Council","http://opendatacommunities.org/id/metropolitan-district-council/wolverhampton","701603","Arnold Clark Finance Limited","HI2225356","14.55","Hire of Vehicles","190370498","08/09/2017","Fleet Services","Fleet Management","R3200"
"Wolverhampton City Council","http://opendatacommunities.org/id/metropolitan-district-council/wolverhampton","701603","Arnold Clark Finance Limited","HI2229329","18.12","Hire of Vehicles","190370509","08/09/2017","Fleet Services","Fleet Management","R3200"
"Wolverhampton City Council","http://opendatacommunities.org/id/metropolitan-district-council/wolverhampton","701603","Arnold Clark Finance Limited","HI2229327","36.24","Hire of Vehicles","190370508","08/09/2017","Fleet Services","Fleet Management","R3200"
"Wolverhampton City Council","http://opendatacommunities.org/id/metropolitan-district-council/wolverhampton","701603","Arnold Clark Finance Limited","HI2225360","18.12","Hire of Vehicles","190370502","08/09/2017","Fleet Services","Fleet Management","R3200"
"Wolverhampton City Council","http://opendatacommunities.org/id/metropolitan-district-council/wolverhampton","701603","Arnold Clark Finance Limited","HI2225357","18.12","Hire of Vehicles","190370499","08/09/2017","Fleet Services","Fleet Management","R3200"
"Wolverhampton City Council","http://opendatacommunities.org/id/metropolitan-district-council/wolverhampton","701603","Arnold Clark Finance Limited","HI2225362","14.55","Hire of Vehicles","190370503","08/09/2017","Fleet Services","Fleet Management","R3200"
"Wolverhampton City Council","http://opendatacommunities.org/id/metropolitan-district-council/wolverhampton","701603","Arnold Clark Finance Limited","HI2225359","18.12","Hire of Vehicles","190370501","08/09/2017","Fleet Services","Fleet Management","R3200"
"Wolverhampton City Council","http://opendatacommunities.org/id/metropolitan-district-council/wolverhampton","701603","Arnold Clark Finance Limited","HI2229322","18.12","Hire of Vehicles","190370506","08/09/2017","Fleet Services","Fleet Management","R3200"
"Wolverhampton City Council","http://opendatacommunities.org/id/metropolitan-district-council/wolverhampton","701603","Arnold Clark Finance Limited","HI2229325","36.24","Hire of Vehicles","190370507","08/09/2017","Fleet Services","Fleet Management","R3200"
"Wolverhampton City Council","http://opendatacommunities.org/id/metropolitan-district-council/wolverhampton","701603","Arnold Clark Finance Limited","HI2225355","36.24","Hire of Vehicles","190370497","08/09/2017","Fleet Services","Fleet Management","R3200"
"Wolverhampton City Council","http://opendatacommunities.org/id/metropolitan-district-council/wolverhampton","701603","Arnold Clark Finance Limited","HI2225358","18.12","Hire of Vehicles","190370500","08/09/2017","Fleet Services","Fleet Management","R3200"
"Wolverhampton City Council","http://opendatacommunities.org/id/metropolitan-district-council/wolverhampton","701603","Arnold Clark Finance Limited","HI2229319","18.12","Hire of Vehicles","190370505","08/09/2017","Fleet Services","Fleet Management","R3200"
"Wolverhampton City Council","http://opendatacommunities.org/id/metropolitan-district-council/wolverhampton","701603","Arnold Clark Finance Limited","HI2225363","14.55","Hire of Vehicles","190370504","08/09/2017","Fleet Services","Fleet Management","R3200"
"Wolverhampton City Council","http://opendatacommunities.org/id/metropolitan-district-council/wolverhampton","701613","Arthur Brett (Catering) Limited","ID965448","126.43","Provisions (Resale)","130186680","08/09/2017","Visitor Economy","Bantock - Tea Rooms","R4102"
"Wolverhampton City Council","http://opendatacommunities.org/id/metropolitan-district-council/wolverhampton","701613","Arthur Brett (Catering) Limited","ID959450","11.31","Provisions (Resale)","130180166","08/09/2017","Learning Disability Provider","Duke Street Bungalows","R4102"
"Wolverhampton City Council","http://opendatacommunities.org/id/metropolitan-district-council/wolverhampton","701613","Arthur Brett (Catering) Limited","ID962352","18.67","Provisions (Not for resale)","130185512","06/09/2017","Learning Disability Provider","Duke Street Bungalows","R4101"
"Wolverhampton City Council","http://opendatacommunities.org/id/metropolitan-district-council/wolverhampton","701613","Arthur Brett (Catering) Limited","ID965181","101.31","Provisions (Resale)","130186554","06/09/2017","Visitor Economy","Art Gallery Tea Room","R4102"
"Wolverhampton City Council","http://opendatacommunities.org/id/metropolitan-district-council/wolverhampton","701613","Arthur Brett (Catering) Limited","ID964940","119.12","Provisions (Resale)","130186320","06/09/2017","Visitor Economy","Art Gallery Tea Room","R4102"
"Wolverhampton City Council","http://opendatacommunities.org/id/metropolitan-district-council/wolverhampton","701613","Arthur Brett (Catering) Limited","ID965167","152.46","Provisions (Resale)","130186553","06/09/2017","Visitor Economy","Bantock - Tea Rooms","R4102"
"Wolverhampton City Council","http://opendatacommunities.org/id/metropolitan-district-council/wolverhampton","701613","Arthur Brett (Catering) Limited","ID964316","47.33","Provisions (Resale)","130186153","18/09/2017","Older People Provider Services","Bradley Lodge Resource Centre","R4102"
"Wolverhampton City Council","http://opendatacommunities.org/id/metropolitan-district-council/wolverhampton","701613","Arthur Brett (Catering) Limited","ID967814","12.26","Provisions (Not for resale)","130189173","27/09/2017","Learning Disability Provider","Duke Street Bungalows","R4101"
"Wolverhampton City Council","http://opendatacommunities.org/id/metropolitan-district-council/wolverhampton","701613","Arthur Brett (Catering) Limited","ID969009","95.04","Provisions (Resale)","130188637","27/09/2017","Visitor Economy","Bantock - Tea Rooms","R4102"
"Wolverhampton City Council","http://opendatacommunities.org/id/metropolitan-district-council/wolverhampton","701613","Arthur Brett (Catering) Limited","ID967812","12.22","Provisions (Not for resale)","130189171","29/09/2017","Learning Disability Provider","Duke Street Bungalows","R4101"
"Wolverhampton City Council","http://opendatacommunities.org/id/metropolitan-district-council/wolverhampton","701613","Arthur Brett (Catering) Limited","ID970536","28.42","Provisions (Resale)","130189345","29/09/2017","Older People Provider Services","Blakenhall Resource Centre","R4102"
"Wolverhampton City Council","http://opendatacommunities.org/id/metropolitan-district-council/wolverhampton","701613","Arthur Brett (Catering) Limited","ID964313","25.12","Provisions (Resale)","130185374","20/09/2017","Older People Provider Services","Blakenhall Resource Centre","R4102"
"Wolverhampton City Council","http://opendatacommunities.org/id/metropolitan-district-council/wolverhampton","701613","Arthur Brett (Catering) Limited","3108171","269.43","Provisions (Resale)","130187714","13/09/2017","Leisure Services","Bert Williams Leisure Centre Caf�","R4102"
"Wolverhampton City Council","http://opendatacommunities.org/id/metropolitan-district-council/wolverhampton","701613","Arthur Brett (Catering) Limited","3107172","78.76","Provisions (Resale)","130185511","13/09/2017","Leisure Services","WV Active Catering","R4102"
"Wolverhampton City Council","http://opendatacommunities.org/id/metropolitan-district-council/wolverhampton","701613","Arthur Brett (Catering) Limited","ID968939","17.11","Provisions (Resale)","130188636","22/09/2017","Older People Provider Services","Blakenhall Resource Centre","R4102"
"Wolverhampton City Council","http://opendatacommunities.org/id/metropolitan-district-council/wolverhampton","701613","Arthur Brett (Catering) Limited","3107174","920.76","Provisions (Resale)","130188054","15/09/2017","Catering","Civic Centre Catering","R4102"
"Wolverhampton City Council","http://opendatacommunities.org/id/metropolitan-district-council/wolverhampton","701613","Arthur Brett (Catering) Limited","ID960412","11.31","Provisions (Resale)","130182207","08/09/2017","Learning Disability Provider","Duke Street Bungalows","R4102"
"Wolverhampton City Council","http://opendatacommunities.org/id/metropolitan-district-council/wolverhampton","701613","Arthur Brett (Catering) Limited","ID960407","18.11","Provisions (Resale)","130182205","08/09/2017","Learning Disability Provider","Duke Street Bungalows","R4102"
"Wolverhampton City Council","http://opendatacommunities.org/id/metropolitan-district-council/wolverhampton","701613","Arthur Brett (Catering) Limited","ID964710","283.34","Provisions (Resale)","130185996","06/09/2017","Visitor Economy","Bantock - Tea Rooms","R4102"
"Wolverhampton City Council","http://opendatacommunities.org/id/metropolitan-district-council/wolverhampton","701613","Arthur Brett (Catering) Limited","ID930216","3.88","Provisions (Resale)","130186842","06/09/2017","Older People Provider Services","Bradley Lodge Resource Centre","R4102"
"Wolverhampton City Council","http://opendatacommunities.org/id/metropolitan-district-council/wolverhampton","701613","Arthur Brett (Catering) Limited","ID962355","18.51","Provisions (Not for resale)","130185993","06/09/2017","Learning Disability Provider","Duke Street Bungalows","R4101"
"Wolverhampton City Council","http://opendatacommunities.org/id/metropolitan-district-council/wolverhampton","701613","Arthur Brett (Catering) Limited","ID964696","100.38","Provisions (Resale)","130185995","06/09/2017","Visitor Economy","Art Gallery Tea Room","R4102"
"Wolverhampton City Council","http://opendatacommunities.org/id/metropolitan-district-council/wolverhampton","701613","Arthur Brett (Catering) Limited","ID969826","43.20","Provisions (Resale)","130188925","27/09/2017","Visitor Economy","Bantock - Tea Rooms","R4102"
"Wolverhampton City Council","http://opendatacommunities.org/id/metropolitan-district-council/wolverhampton","701613","Arthur Brett (Catering) Limited","ID964317","52.17","Provisions (Resale)","130186479","18/09/2017","Older People Provider Services","Bradley Lodge Resource Centre","R4102"
"Wolverhampton City Council","http://opendatacommunities.org/id/metropolitan-district-council/wolverhampton","701613","Arthur Brett (Catering) Limited","ID968108","36.30","Provisions (Resale)","130188451","20/09/2017","Visitor Economy","Art Gallery Tea Room","R4102"
"Wolverhampton City Council","http://opendatacommunities.org/id/metropolitan-district-council/wolverhampton","701613","Arthur Brett (Catering) Limited","ID965144","19.18","Provisions (Not for resale)","130188449","20/09/2017","Learning Disability Provider","Duke Street Bungalows","R4101"
"Wolverhampton City Council","http://opendatacommunities.org/id/metropolitan-district-council/wolverhampton","701613","Arthur Brett (Catering) Limited","ID963103","25.87","Provisions (Resale)","130183217","20/09/2017","Older People Provider Services","Blakenhall Resource Centre","R4102"
"Wolverhampton City Council","http://opendatacommunities.org/id/metropolitan-district-council/wolverhampton","701613","Arthur Brett (Catering) Limited","ID967813","27.81","Provisions (Not for resale)","130189172","29/09/2017","Learning Disability Provider","Duke Street Bungalows","R4101"
"Wolverhampton City Council","http://opendatacommunities.org/id/metropolitan-district-council/wolverhampton","701613","Arthur Brett (Catering) Limited","ID966096","66.34","Provisions (Resale)","130187131","13/09/2017","Visitor Economy","Bantock - Tea Rooms","R4102"
"Wolverhampton City Council","http://opendatacommunities.org/id/metropolitan-district-council/wolverhampton","701613","Arthur Brett (Catering) Limited","ID965940","16.44","Provisions (Resale)","130187025","13/09/2017","Visitor Economy","Art Gallery Tea Room","R4102"
"Wolverhampton City Council","http://opendatacommunities.org/id/metropolitan-district-council/wolverhampton","701613","Arthur Brett (Catering) Limited","WI902906","389.32","Provisions (Resale)","130170446","22/09/2017","Contracts","Children Diet and Physical Activity","R4102"
"Wolverhampton City Council","http://opendatacommunities.org/id/metropolitan-district-council/wolverhampton","701613","Arthur Brett (Catering) Limited","ID968821","106.19","Provisions (Resale)","130188635","22/09/2017","Visitor Economy","Art Gallery Tea Room","R4102"
"Wolverhampton City Council","http://opendatacommunities.org/id/metropolitan-district-council/wolverhampton","701613","Arthur Brett (Catering) Limited","3108172","177.58","Provisions (Resale)","130188056","15/09/2017","Catering","Meals on Wheels","R4102"
"Wolverhampton City Council","http://opendatacommunities.org/id/metropolitan-district-council/wolverhampton","701613","Arthur Brett (Catering) Limited","ID964315","47.06","Provisions (Resale)","130185813","08/09/2017","Older People Provider Services","Bradley Lodge Resource Centre","R4102"
"Wolverhampton City Council","http://opendatacommunities.org/id/metropolitan-district-council/wolverhampton","701613","Arthur Brett (Catering) Limited","ID960404","18.88","Provisions (Resale)","130181485","08/09/2017","Learning Disability Provider","Duke Street Bungalows","R4102"
"Wolverhampton City Council","http://opendatacommunities.org/id/metropolitan-district-council/wolverhampton","701613","Arthur Brett (Catering) Limited","ID964961","56.11","Provisions (Resale)","130186321","06/09/2017","Visitor Economy","Bantock - Tea Rooms","R4102"
"Wolverhampton City Council","http://opendatacommunities.org/id/metropolitan-district-council/wolverhampton","701613","Arthur Brett (Catering) Limited","ID962356","11.23","Provisions (Not for resale)","130185994","06/09/2017","Learning Disability Provider","Duke Street Bungalows","R4101"
"Wolverhampton City Council","http://opendatacommunities.org/id/metropolitan-district-council/wolverhampton","701613","Arthur Brett (Catering) Limited","ID962354","24.81","Provisions (Not for resale)","130185992","06/09/2017","Learning Disability Provider","Duke Street Bungalows","R4101"
"Wolverhampton City Council","http://opendatacommunities.org/id/metropolitan-district-council/wolverhampton","701613","Arthur Brett (Catering) Limited","ID962350","25.14","Provisions (Not for resale)","130185145","06/09/2017","Learning Disability Provider","Duke Street Bungalows","R4101"
"Wolverhampton City Council","http://opendatacommunities.org/id/metropolitan-district-council/wolverhampton","701613","Arthur Brett (Catering) Limited","ID929875","14.45","Provisions (Resale)","130186841","06/09/2017","Older People Provider Services","Bradley Lodge Resource Centre","R4102"
"Wolverhampton City Council","http://opendatacommunities.org/id/metropolitan-district-council/wolverhampton","701613","Arthur Brett (Catering) Limited","ID969378","21.92","Provisions (Resale)","130188772","27/09/2017","Visitor Economy","Art Gallery Tea Room","R4102"
"Wolverhampton City Council","http://opendatacommunities.org/id/metropolitan-district-council/wolverhampton","701613","Arthur Brett (Catering) Limited","ID964314","43.96","Provisions (Resale)","130185513","18/09/2017","Older People Provider Services","Bradley Lodge Resource Centre","R4102"
"Wolverhampton City Council","http://opendatacommunities.org/id/metropolitan-district-council/wolverhampton","701613","Arthur Brett (Catering) Limited","ID970085","21.51","Provisions (Resale)","130189080","29/09/2017","Visitor Economy","Art Gallery Tea Room","R4102"
"Wolverhampton City Council","http://opendatacommunities.org/id/metropolitan-district-council/wolverhampton","701613","Arthur Brett (Catering) Limited","ID968394","137.94","Provisions (Resale)","130188452","20/09/2017","Visitor Economy","Bantock - Tea Rooms","R4102"
"Wolverhampton City Council","http://opendatacommunities.org/id/metropolitan-district-council/wolverhampton","701613","Arthur Brett (Catering) Limited","ID965147","30.87","Provisions (Not for resale)","130187715","20/09/2017","Learning Disability Provider","Duke Street Bungalows","R4101"
"Wolverhampton City Council","http://opendatacommunities.org/id/metropolitan-district-council/wolverhampton","701613","Arthur Brett (Catering) Limited","ID966278","23.32","Provisions (Resale)","130187442","20/09/2017","Older People Provider Services","Blakenhall Resource Centre","R4102"
"Wolverhampton City Council","http://opendatacommunities.org/id/metropolitan-district-council/wolverhampton","701613","Arthur Brett (Catering) Limited","ID965891","4.67","Provisions (Resale)","130187024","13/09/2017","Visitor Economy","Art Gallery Tea Room","R4102"
"Wolverhampton City Council","http://opendatacommunities.org/id/metropolitan-district-council/wolverhampton","701613","Arthur Brett (Catering) Limited","ID966347","117.60","Provisions (Resale)","130187210","13/09/2017","Visitor Economy","Bantock - Tea Rooms","R4102"
"Wolverhampton City Council","http://opendatacommunities.org/id/metropolitan-district-council/wolverhampton","701613","Arthur Brett (Catering) Limited","3107173","23,068.81","Provisions (Resale)","130187713","13/09/2017","Catering","Education Catering - General Overheads","R4102"
"Wolverhampton City Council","http://opendatacommunities.org/id/metropolitan-district-council/wolverhampton","701613","Arthur Brett (Catering) Limited","CN32471","-407.80","Provisions (Resale)","130189073","22/09/2017","Contracts","Children Diet and Physical Activity","R4102"
"Wolverhampton City Council","http://opendatacommunities.org/id/metropolitan-district-council/wolverhampton","701613","Arthur Brett (Catering) Limited","3107175","205.24","Provisions (Resale)","130188055","15/09/2017","Catering","Meals on Wheels","R4102"
"Wolverhampton City Council","http://opendatacommunities.org/id/metropolitan-district-council/wolverhampton","701613","Arthur Brett (Catering) Limited","3108173","807.61","Provisions (Resale)","130188057","15/09/2017","Catering","Civic Centre Catering","R4102"
"Wolverhampton City Council","http://opendatacommunities.org/id/metropolitan-district-council/wolverhampton","701613","Arthur Brett (Catering) Limited","ID964698","31.40","Provisions (Resale)","130186154","08/09/2017","Older People Provider Services","Blakenhall Resource Centre","R4102"
"Wolverhampton City Council","http://opendatacommunities.org/id/metropolitan-district-council/wolverhampton","701613","Arthur Brett (Catering) Limited","ID959854","18.88","Provisions (Resale)","130180672","08/09/2017","Learning Disability Provider","Duke Street Bungalows","R4102"
"Wolverhampton City Council","http://opendatacommunities.org/id/metropolitan-district-council/wolverhampton","701613","Arthur Brett (Catering) Limited","3006176","859.88","Provisions (Resale)","130186851","06/09/2017","Catering","Civic Centre Catering","R4102"
"Wolverhampton City Council","http://opendatacommunities.org/id/metropolitan-district-council/wolverhampton","701613","Arthur Brett (Catering) Limited","ID962349","31.72","Provisions (Not for resale)","130186866","06/09/2017","Learning Disability Provider","Duke Street Bungalows","R4101"
"Wolverhampton City Council","http://opendatacommunities.org/id/metropolitan-district-council/wolverhampton","701613","Arthur Brett (Catering) Limited","ID962351","11.23","Provisions (Not for resale)","130185146","06/09/2017","Learning Disability Provider","Duke Street Bungalows","R4101"
"Wolverhampton City Council","http://opendatacommunities.org/id/metropolitan-district-council/wolverhampton","701613","Arthur Brett (Catering) Limited","ID962358","15.96","Provisions (Not for resale)","130186152","06/09/2017","Learning Disability Provider","Duke Street Bungalows","R4101"
"Wolverhampton City Council","http://opendatacommunities.org/id/metropolitan-district-council/wolverhampton","701613","Arthur Brett (Catering) Limited","ID967765","18.94","Provisions (Not for resale)","130188770","27/09/2017","Learning Disability Provider","Duke Street Bungalows","R4101"
"Wolverhampton City Council","http://opendatacommunities.org/id/metropolitan-district-council/wolverhampton","701613","Arthur Brett (Catering) Limited","ID965139","43.01","Provisions (Resale)","130186724","18/09/2017","Older People Provider Services","Bradley Lodge Resource Centre","R4102"
"Wolverhampton City Council","http://opendatacommunities.org/id/metropolitan-district-council/wolverhampton","701613","Arthur Brett (Catering) Limited","ID965140","49.76","Provisions (Resale)","130187206","20/09/2017","Older People Provider Services","Bradley Lodge Resource Centre","R4102"
"Wolverhampton City Council","http://opendatacommunities.org/id/metropolitan-district-council/wolverhampton","701613","Arthur Brett (Catering) Limited","ID965234","24.58","Provisions (Resale)","130186679","20/09/2017","Older People Provider Services","Blakenhall Resource Centre","R4102"
"Wolverhampton City Council","http://opendatacommunities.org/id/metropolitan-district-council/wolverhampton","701613","Arthur Brett (Catering) Limited","ID967715","106.95","Provisions (Resale)","130188058","20/09/2017","Visitor Economy","Art Gallery Tea Room","R4102"
"Wolverhampton City Council","http://opendatacommunities.org/id/metropolitan-district-council/wolverhampton","701613","Arthur Brett (Catering) Limited","ID965145","18.87","Provisions (Not for resale)","130186725","13/09/2017","Learning Disability Provider","Duke Street Bungalows","R4101"
"Wolverhampton City Council","http://opendatacommunities.org/id/metropolitan-district-council/wolverhampton","701613","Arthur Brett (Catering) Limited","ID965864","82.11","Provisions (Resale)","130187023","13/09/2017","Visitor Economy","Art Gallery Tea Room","R4102"
"Wolverhampton City Council","http://opendatacommunities.org/id/metropolitan-district-council/wolverhampton","701613","Arthur Brett (Catering) Limited","CN32472","-389.32","Provisions (Resale)","130189074","22/09/2017","Contracts","Children Diet and Physical Activity","R4102"
"Wolverhampton City Council","http://opendatacommunities.org/id/metropolitan-district-council/wolverhampton","701613","Arthur Brett (Catering) Limited","WI902893","407.80","Provisions (Resale)","130169742","22/09/2017","Contracts","Children Diet and Physical Activity","R4102"
"Wolverhampton City Council","http://opendatacommunities.org/id/metropolitan-district-council/wolverhampton","701613","Arthur Brett (Catering) Limited","ID966861","102.25","Provisions (Resale)","130187443","15/09/2017","Visitor Economy","Art Gallery Tea Room","R4102"
"Wolverhampton City Council","http://opendatacommunities.org/id/metropolitan-district-council/wolverhampton","701613","Arthur Brett (Catering) Limited","ID966873","119.11","Provisions (Resale)","130187444","15/09/2017","Visitor Economy","Bantock - Tea Rooms","R4102"
"Wolverhampton City Council","http://opendatacommunities.org/id/metropolitan-district-council/wolverhampton","701613","Arthur Brett (Catering) Limited","ID965149","13.23","Provisions (Not for resale)","130187209","15/09/2017","Learning Disability Provider","Duke Street Bungalows","R4101"
"Wolverhampton City Council","http://opendatacommunities.org/id/metropolitan-district-council/wolverhampton","701616","Arthur M Griffiths & Son Limited","IN17407","147,620.89","Construction and Conversion","130185814","01/09/2017","","Primary Expansion Programme","C1100"
"Wolverhampton City Council","http://opendatacommunities.org/id/metropolitan-district-council/wolverhampton","701616","Arthur M Griffiths & Son Limited","IN17418","413,118.04","Construction and Conversion","130189176","22/09/2017","","Primary Expansion Programme","C1100"
"Wolverhampton City Council","http://opendatacommunities.org/id/metropolitan-district-council/wolverhampton","701636","Asdan Limited","261856","33.95","Training Expenses","130186555","20/09/2017","Headstart","Headstart - Young People Engagement","R1650"
"Wolverhampton City Council","http://opendatacommunities.org/id/metropolitan-district-council/wolverhampton","701642","Ashcroft Memorials","3764","180.00","Services - Professional Fees","130188926","20/09/2017","Bereavement Services","Cemeteries","R4400"
"Wolverhampton City Council","http://opendatacommunities.org/id/metropolitan-district-council/wolverhampton","701648","Ashmore Park Community Association","17008","30.00","Room Hire","130189792","29/09/2017","Early Intervention","EIP Locality 8 � Children�s Village","R2201"
"Wolverhampton City Council","http://opendatacommunities.org/id/metropolitan-district-council/wolverhampton","701652","Ashton Engineering Co. Limited","5125","295.00","Equipment - Purchase","190378091","27/09/2017","Fleet Services","Fleet Management","R4000"
"Wolverhampton City Council","http://opendatacommunities.org/id/metropolitan-district-council/wolverhampton","701656","Askews & Holts Library Services Limited","5488105","282.52","Books","130186957","20/09/2017","Strategic Organisation Development","Global Budgets","R4309"
"Wolverhampton City Council","http://opendatacommunities.org/id/metropolitan-district-council/wolverhampton","701656","Askews & Holts Library Services Limited","5488296","270.62","Books","130186961","20/09/2017","Strategic Organisation Development","Global Budgets","R4309"
"Wolverhampton City Council","http://opendatacommunities.org/id/metropolitan-district-council/wolverhampton","701656","Askews & Holts Library Services Limited","5488339","71.82","Books","130186964","20/09/2017","Strategic Organisation Development","Global Budgets","R4309"
"Wolverhampton City Council","http://opendatacommunities.org/id/metropolitan-district-council/wolverhampton","701656","Askews & Holts Library Services Limited","5488297","282.52","Books","130186962","20/09/2017","Strategic Organisation Development","Global Budgets","R4309"
"Wolverhampton City Council","http://opendatacommunities.org/id/metropolitan-district-council/wolverhampton","701656","Askews & Holts Library Services Limited","5488104","125.03","Books","130186956","20/09/2017","Strategic Organisation Development","Global Budgets","R4309"
"Wolverhampton City Council","http://opendatacommunities.org/id/metropolitan-district-council/wolverhampton","701656","Askews & Holts Library Services Limited","5488161","168.51","Books","130186959","20/09/2017","Strategic Organisation Development","Global Budgets","R4309"
"Wolverhampton City Council","http://opendatacommunities.org/id/metropolitan-district-council/wolverhampton","701656","Askews & Holts Library Services Limited","5484394","78.05","Books","130186954","15/09/2017","Strategic Organisation Development","Global Budgets","R4309"
"Wolverhampton City Council","http://opendatacommunities.org/id/metropolitan-district-council/wolverhampton","701656","Askews & Holts Library Services Limited","5488338","609.63","Books","130186963","20/09/2017","Strategic Organisation Development","Global Budgets","R4309"
"Wolverhampton City Council","http://opendatacommunities.org/id/metropolitan-district-council/wolverhampton","701656","Askews & Holts Library Services Limited","5490495","144.41","Books","130186965","20/09/2017","Strategic Organisation Development","Global Budgets","R4309"
"Wolverhampton City Council","http://opendatacommunities.org/id/metropolitan-district-council/wolverhampton","701656","Askews & Holts Library Services Limited","5485828","403.53","Books","130186902","15/09/2017","Strategic Organisation Development","Global Budgets","R4309"
"Wolverhampton City Council","http://opendatacommunities.org/id/metropolitan-district-council/wolverhampton","701656","Askews & Holts Library Services Limited","5488243","276.65","Books","130186960","20/09/2017","Strategic Organisation Development","Global Budgets","R4309"
"Wolverhampton City Council","http://opendatacommunities.org/id/metropolitan-district-council/wolverhampton","701656","Askews & Holts Library Services Limited","5488103","585.52","Books","130186955","20/09/2017","Strategic Organisation Development","Global Budgets","R4309"
"Wolverhampton City Council","http://opendatacommunities.org/id/metropolitan-district-council/wolverhampton","701656","Askews & Holts Library Services Limited","5488160","574.28","Books","130186958","20/09/2017","Strategic Organisation Development","Global Budgets","R4309"
"Wolverhampton City Council","http://opendatacommunities.org/id/metropolitan-district-council/wolverhampton","701656","Askews & Holts Library Services Limited","5475142","14.36","Books","130184981","01/09/2017","Strategic Organisation Development","Global Budgets","R4309"
"Wolverhampton City Council","http://opendatacommunities.org/id/metropolitan-district-council/wolverhampton","701656","Askews & Holts Library Services Limited","5485829","106.77","Books","130186903","15/09/2017","Strategic Organisation Development","Global Budgets","R4309"
"Wolverhampton City Council","http://opendatacommunities.org/id/metropolitan-district-council/wolverhampton","701656","Askews & Holts Library Services Limited","5478900","14.49","Books","130185148","06/09/2017","Strategic Organisation Development","Global Budgets","R4309"
"Wolverhampton City Council","http://opendatacommunities.org/id/metropolitan-district-council/wolverhampton","701672","Assn Of Electoral Administrators","21403","1,585.00","Training Expenses","130189178","27/09/2017","Human Resources","Centralised Training","R1650"
"Wolverhampton City Council","http://opendatacommunities.org/id/metropolitan-district-council/wolverhampton","701672","Assn Of Electoral Administrators","21396","47.50","Subscriptions","130189177","27/09/2017","Democratic Services","Electoral Registration","R4701"
"Wolverhampton City Council","http://opendatacommunities.org/id/metropolitan-district-council/wolverhampton","701674","Assoc Financial Assessment Officers","NAFA017 - 17.135","200.00","Subscriptions","130188287","15/09/2017","Welfare Rights & Financial Assessment","Financial Assessments","R4701"
"Wolverhampton City Council","http://opendatacommunities.org/id/metropolitan-district-council/wolverhampton","701680","Associated  Radio Taxi�s","030998","1,183.03","Client Transport","130187717","15/09/2017","School Planning & Resources","Primary - Transport","R3042"
"Wolverhampton City Council","http://opendatacommunities.org/id/metropolitan-district-council/wolverhampton","701680","Associated  Radio Taxi�s","030997","3.00","Client Transport","130187716","15/09/2017","School Planning & Resources","Secondary- Transport","R3042"
"Wolverhampton City Council","http://opendatacommunities.org/id/metropolitan-district-council/wolverhampton","701680","Associated  Radio Taxi�s","030997","946.20","Client Transport","130187716","15/09/2017","School Planning & Resources","Secondary- Transport","R3042"
"Wolverhampton City Council","http://opendatacommunities.org/id/metropolitan-district-council/wolverhampton","701680","Associated  Radio Taxi�s","02321","95.20","Hospitality","130170913","20/09/2017","Democratic Services","Mayoral Expenses","R4612"
"Wolverhampton City Council","http://opendatacommunities.org/id/metropolitan-district-council/wolverhampton","701680","Associated  Radio Taxi�s","02321","-95.20","Hospitality","130170913","20/09/2017","Democratic Services","Mayoral Expenses","R4612"
"Wolverhampton City Council","http://opendatacommunities.org/id/metropolitan-district-council/wolverhampton","701680","Associated  Radio Taxi�s","02321","95.20","Hospitality","130170913","20/09/2017","Democratic Services","Mayoral Expenses","R4612"
"Wolverhampton City Council","http://opendatacommunities.org/id/metropolitan-district-council/wolverhampton","701680","Associated  Radio Taxi�s","030999","804.30","Client Transport","130187718","15/09/2017","School Planning & Resources","Primary - Transport","R3042"
"Wolverhampton City Council","http://opendatacommunities.org/id/metropolitan-district-council/wolverhampton","701682","Association Of Adult Education And","INV - 0466","820.00","Subscriptions","130185151","13/09/2017","Adult Education","Service Wide","R4701"
"Wolverhampton City Council","http://opendatacommunities.org/id/metropolitan-district-council/wolverhampton","701707","Aurora Graphics & Displays Limited","50486","283.00","Printing","130187719","13/09/2017","ICTS","Document Centre - General","R4300"
"Wolverhampton City Council","http://opendatacommunities.org/id/metropolitan-district-council/wolverhampton","701707","Aurora Graphics & Displays Limited","51095","39.80","Printing","130189512","27/09/2017","ICTS","Document Centre - General","R4300"
"Wolverhampton City Council","http://opendatacommunities.org/id/metropolitan-district-council/wolverhampton","701707","Aurora Graphics & Displays Limited","50980","181.00","Printing","130189179","27/09/2017","ICTS","Document Centre - General","R4300"
"Wolverhampton City Council","http://opendatacommunities.org/id/metropolitan-district-council/wolverhampton","701712","Pelican Rouge Coffee Solutions Limited","170061598","33.34","Equipment - Hire","130185999","08/09/2017","Democratic Services","Members Expenses","R4001"
"Wolverhampton City Council","http://opendatacommunities.org/id/metropolitan-district-council/wolverhampton","701712","Pelican Rouge Coffee Solutions Limited","170064288","6,115.00","Equipment - Purchase","130186726","20/09/2017","Corporate Asset Management","Future Space Decant Area","R4000"
"Wolverhampton City Council","http://opendatacommunities.org/id/metropolitan-district-council/wolverhampton","701712","Pelican Rouge Coffee Solutions Limited","170064288","-6,115.00","Equipment - Purchase","130186726","20/09/2017","Corporate Asset Management","Future Space Decant Area","R4000"
"Wolverhampton City Council","http://opendatacommunities.org/id/metropolitan-district-council/wolverhampton","701712","Pelican Rouge Coffee Solutions Limited","170064288","5,950.00","Equipment - Purchase","130186726","20/09/2017","Corporate Asset Management","Future Space Decant Area","R4000"
"Wolverhampton City Council","http://opendatacommunities.org/id/metropolitan-district-council/wolverhampton","701712","Pelican Rouge Coffee Solutions Limited","170064288","165.00","Equipment - Purchase","130186726","20/09/2017","Corporate Asset Management","Future Space Decant Area","R4000"
"Wolverhampton City Council","http://opendatacommunities.org/id/metropolitan-district-council/wolverhampton","701712","Pelican Rouge Coffee Solutions Limited","170064966","648.58","Provisions (Resale)","130187445","20/09/2017","Catering","Civic Centre Catering","R4102"
"Wolverhampton City Council","http://opendatacommunities.org/id/metropolitan-district-council/wolverhampton","701712","Pelican Rouge Coffee Solutions Limited","170064966","648.58","Provisions (Resale)","130187445","20/09/2017","Catering","Civic Centre Catering","R4102"
"Wolverhampton City Council","http://opendatacommunities.org/id/metropolitan-district-council/wolverhampton","701712","Pelican Rouge Coffee Solutions Limited","170064966","-648.58","Provisions (Resale)","130187445","20/09/2017","Catering","Civic Centre Catering","R4102"
"Wolverhampton City Council","http://opendatacommunities.org/id/metropolitan-district-council/wolverhampton","701712","Pelican Rouge Coffee Solutions Limited","170032739","52.50","Equipment - Hire","130182009","15/09/2017","Democratic Services","Members Expenses","R4001"
"Wolverhampton City Council","http://opendatacommunities.org/id/metropolitan-district-council/wolverhampton","701739","Axiom Building Solutions","04521","4,850.00","R&M - Departmental planned (external)","130185152","13/09/2017","Capital Programme","Capital Programme Team work for external clients","R2001"
"Wolverhampton City Council","http://opendatacommunities.org/id/metropolitan-district-council/wolverhampton","701739","Axiom Building Solutions","04507","12,850.00","R&M - Departmental planned (external)","130184982","08/09/2017","Facilities Management","Magistrates","R2001"
"Wolverhampton City Council","http://opendatacommunities.org/id/metropolitan-district-council/wolverhampton","701739","Axiom Building Solutions","04573","525.00","R&M - Departmental planned (external)","130187722","27/09/2017","Corporate Asset Management","Statutory Surveys","R2001"
"Wolverhampton City Council","http://opendatacommunities.org/id/metropolitan-district-council/wolverhampton","701739","Axiom Building Solutions","04473","17,700.00","R&M - Departmental planned (external)","130184106","01/09/2017","Facilities Management","Magistrates","R2001"
"Wolverhampton City Council","http://opendatacommunities.org/id/metropolitan-district-council/wolverhampton","701774","Badenoch & Clark Recruit. Specialist","P30474/00","6,000.00","Staff Advertising Costs","130189350","27/09/2017","Operation & Maintenance of Existing Network","Head of City Transport","R1700"
"Wolverhampton City Council","http://opendatacommunities.org/id/metropolitan-district-council/wolverhampton","701774","Badenoch & Clark Recruit. Specialist","P30603/00","5,000.00","Services - Professional Fees","130187216","20/09/2017","Audit Services","Risk Management & Insurance","R4400"
"Wolverhampton City Council","http://opendatacommunities.org/id/metropolitan-district-council/wolverhampton","701774","Badenoch & Clark Recruit. Specialist","P30473/00","6,000.00","Staff Advertising Costs","130189349","27/09/2017","Operation & Maintenance of Existing Network","Head of City Transport","R1700"
"Wolverhampton City Council","http://opendatacommunities.org/id/metropolitan-district-council/wolverhampton","701774","Badenoch & Clark Recruit. Specialist","P30475/00","6,000.00","Staff Advertising Costs","130189351","27/09/2017","Head of Corporate Landlord","Head of Corporate Landlord","R1700"
"Wolverhampton City Council","http://opendatacommunities.org/id/metropolitan-district-council/wolverhampton","701774","Badenoch & Clark Recruit. Specialist","P30472/00","6,000.00","Staff Advertising Costs","130189348","27/09/2017","Head of Corporate Landlord","Head of Corporate Landlord","R1700"
"Wolverhampton City Council","http://opendatacommunities.org/id/metropolitan-district-council/wolverhampton","701784","Bains Supersave Limited","APNEWS 041","49.20","Books","130187446","15/09/2017","Strategic Organisation Development","Global Budgets","R4309"
"Wolverhampton City Council","http://opendatacommunities.org/id/metropolitan-district-council/wolverhampton","701787","Baker Hall Limited","WV/08/17","1,347.50","Services - Consultants","130187447","27/09/2017","Planning","Building Consultancy","R4404"
"Wolverhampton City Council","http://opendatacommunities.org/id/metropolitan-district-council/wolverhampton","701797","Barber Of Sheffield Limited","526833","67.35","Equipment - Purchase","130184109","01/09/2017","Bereavement Services","Coroners","R4000"
"Wolverhampton City Council","http://opendatacommunities.org/id/metropolitan-district-council/wolverhampton","701797","Barber Of Sheffield Limited","526833","34.50","Equipment - Purchase","130184109","01/09/2017","Bereavement Services","Coroners","R4000"
"Wolverhampton City Council","http://opendatacommunities.org/id/metropolitan-district-council/wolverhampton","701797","Barber Of Sheffield Limited","526833","59.50","Equipment - Purchase","130184109","01/09/2017","Bereavement Services","Coroners","R4000"
"Wolverhampton City Council","http://opendatacommunities.org/id/metropolitan-district-council/wolverhampton","701797","Barber Of Sheffield Limited","526833","8.00","Equipment - Purchase","130184109","01/09/2017","Bereavement Services","Coroners","R4000"
"Wolverhampton City Council","http://opendatacommunities.org/id/metropolitan-district-council/wolverhampton","701797","Barber Of Sheffield Limited","531063","157.15","Equipment - Purchase","130185816","15/09/2017","Bereavement Services","Coroners","R4000"
"Wolverhampton City Council","http://opendatacommunities.org/id/metropolitan-district-council/wolverhampton","701807","Barnsley Bate Limited","17153","600.00","Services - Professional Fees","130188933","20/09/2017","Public Protection","EHTS Operational Costs","R4400"
"Wolverhampton City Council","http://opendatacommunities.org/id/metropolitan-district-council/wolverhampton","701817","Base 25","3137","396.00","TPP - Public Health Contracts","130187026","06/09/2017","Looked After Children","Pupil Premium","R5060"
"Wolverhampton City Council","http://opendatacommunities.org/id/metropolitan-district-council/wolverhampton","701832","Bbp.Security Services & Training Limited","154WCC140917","1,960.00","Services - Security","130188454","20/09/2017","Facilities Management","Civic Centre","R4405"
"Wolverhampton City Council","http://opendatacommunities.org/id/metropolitan-district-council/wolverhampton","701832","Bbp.Security Services & Training Limited","155WCC140917","8,960.00","Services - Security","130188455","20/09/2017","Facilities Management","Management of Vacant Properties","R4405"
"Wolverhampton City Council","http://opendatacommunities.org/id/metropolitan-district-council/wolverhampton","701832","Bbp.Security Services & Training Limited","1012WCC180917OE","960.00","Services - Security","130188774","27/09/2017","Visitor Economy","Bantock House Museum","R4405"
"Wolverhampton City Council","http://opendatacommunities.org/id/metropolitan-district-council/wolverhampton","701832","Bbp.Security Services & Training Limited","153WCC140917","3,935.00","Services - Security","130188453","20/09/2017","Facilities Management","Parkfields Office Accomodation","R4405"
"Wolverhampton City Council","http://opendatacommunities.org/id/metropolitan-district-council/wolverhampton","701832","Bbp.Security Services & Training Limited","159WCC140917","138.00","Services - Security","130188459","20/09/2017","Skills","Work Box","R4405"
"Wolverhampton City Council","http://opendatacommunities.org/id/metropolitan-district-council/wolverhampton","701832","Bbp.Security Services & Training Limited","152WCC060917","6,720.00","Services - Security","130187132","13/09/2017","Licensing","Licensing - Private Hire Vehicles","R4405"
"Wolverhampton City Council","http://opendatacommunities.org/id/metropolitan-district-council/wolverhampton","701832","Bbp.Security Services & Training Limited","152WCC060917","448.00","Services - Security","130187132","13/09/2017","Licensing","Licensing - Private Hire Vehicles","R4405"
"Wolverhampton City Council","http://opendatacommunities.org/id/metropolitan-district-council/wolverhampton","701832","Bbp.Security Services & Training Limited","157WCC140917","242.00","Services - Security","130188457","20/09/2017","Maintenance Programme","Asset Management Team","R4405"
"Wolverhampton City Council","http://opendatacommunities.org/id/metropolitan-district-council/wolverhampton","701832","Bbp.Security Services & Training Limited","156WCC140917","2,200.00","Services - Security","130188456","20/09/2017","Facilities Management","i10 Facilities Management","R4405"
"Wolverhampton City Council","http://opendatacommunities.org/id/metropolitan-district-council/wolverhampton","701832","Bbp.Security Services & Training Limited","158WCC140917","484.00","Services - Security","130188458","20/09/2017","Maintenance Programme","Asset Management Team","R4405"
"Wolverhampton City Council","http://opendatacommunities.org/id/metropolitan-district-council/wolverhampton","701832","Bbp.Security Services & Training Limited","1011LCIV130917","159.66","Services - Security","130188289","20/09/2017","Visitor Economy","The Little Civic","R4405"
"Wolverhampton City Council","http://opendatacommunities.org/id/metropolitan-district-council/wolverhampton","701834","BCC Mac T/A St Edmund�s Catholic","P14533420170616","600.00","Grant Payments to Individuals","190347036","29/09/2017","Looked After Children","LAC Education Team (LACE)","R6402"
"Wolverhampton City Council","http://opendatacommunities.org/id/metropolitan-district-council/wolverhampton","701834","BCC Mac T/A St Edmund�s Catholic","P14533420170616","800.00","Grant Payments to Individuals","190347036","29/09/2017","Looked After Children","LAC Education Team (LACE)","R6402"
"Wolverhampton City Council","http://opendatacommunities.org/id/metropolitan-district-council/wolverhampton","701834","BCC Mac T/A St Edmund�s Catholic","P14533420170616","600.00","Grant Payments to Individuals","190347036","29/09/2017","Looked After Children","LAC Education Team (LACE)","R6402"
"Wolverhampton City Council","http://opendatacommunities.org/id/metropolitan-district-council/wolverhampton","701834","BCC Mac T/A St Edmund�s Catholic","P14533420170616","600.00","Grant Payments to Individuals","190347036","29/09/2017","Looked After Children","LAC Education Team (LACE)","R6402"
"Wolverhampton City Council","http://opendatacommunities.org/id/metropolitan-district-council/wolverhampton","701834","BCC Mac T/A St Edmund�s Catholic","P14533420170616","600.00","Grant Payments to Individuals","190347036","29/09/2017","Looked After Children","LAC Education Team (LACE)","R6402"
"Wolverhampton City Council","http://opendatacommunities.org/id/metropolitan-district-council/wolverhampton","701834","BCC Mac T/A St Edmund�s Catholic","P14533420170616","600.00","Grant Payments to Individuals","190347036","29/09/2017","Looked After Children","LAC Education Team (LACE)","R6402"
"Wolverhampton City Council","http://opendatacommunities.org/id/metropolitan-district-council/wolverhampton","701834","BCC Mac T/A St Edmund�s Catholic","P14533420170616","600.00","Grant Payments to Individuals","190347036","29/09/2017","Looked After Children","LAC Education Team (LACE)","R6402"
"Wolverhampton City Council","http://opendatacommunities.org/id/metropolitan-district-council/wolverhampton","701835","BCC Mac T/A St Michaels Catholic","St Michaels Catholic Academy Early Years Payment Summer Term Final 2017/18","12,537.63","Grant Payments","190374376","20/09/2017","Schools","Academy Early years","R4700"
"Wolverhampton City Council","http://opendatacommunities.org/id/metropolitan-district-council/wolverhampton","701835","BCC Mac T/A St Michaels Catholic","St Michaels Catholic Academy Early Years Payment Autumn Term Interim 2017/18","8,496.67","Grant Payments","190374377","20/09/2017","Schools","Academy Early years","R4700"
"Wolverhampton City Council","http://opendatacommunities.org/id/metropolitan-district-council/wolverhampton","701837","SS Peter & Paul Cath. Primary & Nursery","SS Peter & Paul Catholic Academy Early Years Payment Autumn Term Interim 2017/18","7,641.50","Grant Payments","190374379","20/09/2017","Schools","Academy Early years","R4700"
"Wolverhampton City Council","http://opendatacommunities.org/id/metropolitan-district-council/wolverhampton","701837","SS Peter & Paul Cath. Primary & Nursery","SS Peter & Paul Catholic Academy Early Years Payment Summer Term Final 2017/18","7,635.71","Grant Payments","190374378","20/09/2017","Schools","Academy Early years","R4700"
"Wolverhampton City Council","http://opendatacommunities.org/id/metropolitan-district-council/wolverhampton","701842","Beacon Centre For The Blind","BCI2591920170921","400.00","TPP - Day Care","190375706","22/09/2017","Older People Care Purchasing","OP Care Purchasing (Spot Placements)","R5430"
"Wolverhampton City Council","http://opendatacommunities.org/id/metropolitan-district-council/wolverhampton","701842","Beacon Centre For The Blind","BCI2591920170921","600.00","TPP - Day Care","190375706","22/09/2017","Older People Care Purchasing","OP Care Purchasing (Spot Placements)","R5430"
"Wolverhampton City Council","http://opendatacommunities.org/id/metropolitan-district-council/wolverhampton","701842","Beacon Centre For The Blind","BCI2591920170921","350.00","TPP - Day Care","190375706","22/09/2017","Older People Care Purchasing","OP Care Purchasing (Spot Placements)","R5430"
"Wolverhampton City Council","http://opendatacommunities.org/id/metropolitan-district-council/wolverhampton","701842","Beacon Centre For The Blind","BCI2591920170921","600.00","TPP - Day Care","190375706","22/09/2017","Older People Care Purchasing","OP Care Purchasing (Spot Placements)","R5430"
"Wolverhampton City Council","http://opendatacommunities.org/id/metropolitan-district-council/wolverhampton","701842","Beacon Centre For The Blind","BCI2591920170921","350.00","TPP - Day Care","190375706","22/09/2017","Older People Care Purchasing","OP Care Purchasing (Spot Placements)","R5430"
"Wolverhampton City Council","http://opendatacommunities.org/id/metropolitan-district-council/wolverhampton","701842","Beacon Centre For The Blind","BCI2583220170904","350.00","TPP - Day Care","190369853","06/09/2017","Older People Care Purchasing","OP Care Purchasing (Spot Placements)","R5430"
"Wolverhampton City Council","http://opendatacommunities.org/id/metropolitan-district-council/wolverhampton","701842","Beacon Centre For The Blind","BCI2583220170904","500.00","TPP - Day Care","190369853","06/09/2017","Older People Care Purchasing","OP Care Purchasing (Spot Placements)","R5430"
"Wolverhampton City Council","http://opendatacommunities.org/id/metropolitan-district-council/wolverhampton","701842","Beacon Centre For The Blind","BCI2583220170904","400.00","TPP - Day Care","190369853","06/09/2017","Older People Care Purchasing","OP Care Purchasing (Spot Placements)","R5430"
"Wolverhampton City Council","http://opendatacommunities.org/id/metropolitan-district-council/wolverhampton","701842","Beacon Centre For The Blind","BCI2583220170904","600.00","TPP - Day Care","190369853","06/09/2017","Older People Care Purchasing","OP Care Purchasing (Spot Placements)","R5430"
"Wolverhampton City Council","http://opendatacommunities.org/id/metropolitan-district-council/wolverhampton","701842","Beacon Centre For The Blind","BCI2583220170904","300.00","TPP - Day Care","190369853","06/09/2017","Older People Care Purchasing","OP Care Purchasing (Spot Placements)","R5430"
"Wolverhampton City Council","http://opendatacommunities.org/id/metropolitan-district-council/wolverhampton","701842","Beacon Centre For The Blind","BCI2591820170921","72.45","TPP - Day Care","190375705","22/09/2017","Older People Care Purchasing","OP Care Purchasing (Spot Placements)","R5430"
"Wolverhampton City Council","http://opendatacommunities.org/id/metropolitan-district-council/wolverhampton","701842","Beacon Centre For The Blind","BCI2591820170921","96.60","TPP - Day Care","190375705","22/09/2017","Older People Care Purchasing","OP Care Purchasing (Spot Placements)","R5430"
"Wolverhampton City Council","http://opendatacommunities.org/id/metropolitan-district-council/wolverhampton","701842","Beacon Centre For The Blind","BCI2591820170921","96.60","TPP - Day Care","190375705","22/09/2017","Older People Care Purchasing","OP Care Purchasing (Spot Placements)","R5430"
"Wolverhampton City Council","http://opendatacommunities.org/id/metropolitan-district-council/wolverhampton","701842","Beacon Centre For The Blind","BCI2591820170921","24.15","TPP - Day Care","190375705","22/09/2017","Older People Care Purchasing","OP Care Purchasing (Spot Placements)","R5430"
"Wolverhampton City Council","http://opendatacommunities.org/id/metropolitan-district-council/wolverhampton","701842","Beacon Centre For The Blind","BCI2591820170921","96.60","TPP - Day Care","190375705","22/09/2017","Older People Care Purchasing","OP Care Purchasing (Spot Placements)","R5430"
"Wolverhampton City Council","http://opendatacommunities.org/id/metropolitan-district-council/wolverhampton","701842","Beacon Centre For The Blind","BCI2591820170921","72.45","TPP - Day Care","190375705","22/09/2017","Older People Care Purchasing","OP Care Purchasing (Spot Placements)","R5430"
"Wolverhampton City Council","http://opendatacommunities.org/id/metropolitan-district-council/wolverhampton","701842","Beacon Centre For The Blind","BCI2591820170921","72.45","TPP - Day Care","190375705","22/09/2017","Older People Care Purchasing","OP Care Purchasing (Spot Placements)","R5430"
"Wolverhampton City Council","http://opendatacommunities.org/id/metropolitan-district-council/wolverhampton","701842","Beacon Centre For The Blind","BCI2591820170921","72.45","TPP - Day Care","190375705","22/09/2017","Older People Care Purchasing","OP Care Purchasing (Spot Placements)","R5430"
"Wolverhampton City Council","http://opendatacommunities.org/id/metropolitan-district-council/wolverhampton","701842","Beacon Centre For The Blind","BCI2591820170921","24.15","TPP - Day Care","190375705","22/09/2017","Older People Care Purchasing","OP Care Purchasing (Spot Placements)","R5430"
"Wolverhampton City Council","http://opendatacommunities.org/id/metropolitan-district-council/wolverhampton","701842","Beacon Centre For The Blind","BCI2591820170921","72.45","TPP - Day Care","190375705","22/09/2017","Older People Care Purchasing","OP Care Purchasing (Spot Placements)","R5430"
"Wolverhampton City Council","http://opendatacommunities.org/id/metropolitan-district-council/wolverhampton","701842","Beacon Centre For The Blind","BCI2591820170921","96.60","TPP - Day Care","190375705","22/09/2017","Older People Care Purchasing","OP Care Purchasing (Spot Placements)","R5430"
"Wolverhampton City Council","http://opendatacommunities.org/id/metropolitan-district-council/wolverhampton","701842","Beacon Centre For The Blind","BCI2591820170921","96.60","TPP - Day Care","190375705","22/09/2017","Older People Care Purchasing","OP Care Purchasing (Spot Placements)","R5430"
"Wolverhampton City Council","http://opendatacommunities.org/id/metropolitan-district-council/wolverhampton","701842","Beacon Centre For The Blind","BCI2591820170921","72.45","TPP - Day Care","190375705","22/09/2017","Older People Care Purchasing","OP Care Purchasing (Spot Placements)","R5430"
"Wolverhampton City Council","http://opendatacommunities.org/id/metropolitan-district-council/wolverhampton","701842","Beacon Centre For The Blind","BCI2591820170921","96.60","TPP - Day Care","190375705","22/09/2017","Older People Care Purchasing","OP Care Purchasing (Spot Placements)","R5430"
"Wolverhampton City Council","http://opendatacommunities.org/id/metropolitan-district-council/wolverhampton","701842","Beacon Centre For The Blind","BCI2591820170921","144.90","TPP - Day Care","190375705","22/09/2017","Older People Care Purchasing","OP Care Purchasing (Spot Placements)","R5430"
"Wolverhampton City Council","http://opendatacommunities.org/id/metropolitan-district-council/wolverhampton","701842","Beacon Centre For The Blind","BCI2591820170921","72.45","TPP - Day Care","190375705","22/09/2017","Older People Care Purchasing","OP Care Purchasing (Spot Placements)","R5430"
"Wolverhampton City Council","http://opendatacommunities.org/id/metropolitan-district-council/wolverhampton","701842","Beacon Centre For The Blind","BCI2591820170921","144.90","TPP - Day Care","190375705","22/09/2017","Older People Care Purchasing","OP Care Purchasing (Spot Placements)","R5430"
"Wolverhampton City Council","http://opendatacommunities.org/id/metropolitan-district-council/wolverhampton","701842","Beacon Centre For The Blind","BCI2591820170921","96.60","TPP - Day Care","190375705","22/09/2017","Older People Care Purchasing","OP Care Purchasing (Spot Placements)","R5430"
